Cogmind - Beta 11 X4 @@@ ROGUE MODE // 2021.05.25 @ 20:41:16 Player: Terminus Result: Destroyed by B-99 Colossus with Linear Accelerator Performance ------------- Evolutions (9) 4500 Regions Visited (39) 7800 Robots Destroyed (1025) 5125 Value Destroyed (56833) 56833 Prototype IDs (226) 4520 Alien Tech Used (10) 2000 Bonus (38891) 38891 TOTAL SCORE: 119669 Bonus ------- Triggered High Security 1500 High Alert Combat Kills 27892 Follower Combat Kills 1748 Network Hubs Disabled 200 Met Data Miner 300 Used Data Conduit 3000 Met Imprinter 300 Met Warlord at Base 500 MAIN.C Attacked Warlord 500 Met R17 at Cetus 500 Scanned by Researcher 500 Pursued by Intercept 3000 Met Warlord at Command 2000 Friendly Fire -3049 Cogmind --------- Core Integrity 0/1600 Matter 227/300 Energy 98/100 System Corruption 0% Temperature Cool (0) Movement Core (50) Location -1/Command Parts ------- > --- POWER (2) -------- (None) > --- PROPULSION (4) --- (None) > --- UTILITY (15) ----- (None) > --- WEAPON (4) ------- (None) > --- INVENTORY (9) ---- Experimental Matter Compressor (500) EM Dispersion Field Antimissile System Transdimensional Reconstructor Peak State ------------ > --- POWER ------------ Vortex Chain Reactor > --- PROPULSION ------- High-density Centrium Heavy Treads High-density Centrium Heavy Treads > --- UTILITY ---------- Experimental Cooling System Huge Storage Unit Long-range Sensor Array Advanced Signal Interpreter Experimental Targeting Computer Advanced Target Analyzer Advanced Armor Integrity Analyzer Advanced Weapon Cycler Experimental Weapon Shielding SHELL Armor Experimental Force Field Advanced Hacking Suite System Mapper > --- WEAPON ----------- Linked Autogun Perforator > --- INVENTORY -------- Quantum Reactor Improved Quantum Reactor Improved Quantum Reactor Centrium Heavy Treads Centrium Heavy Treads Coolant Network Improved Matter Compressor Experimental Matter Compressor Long-range Sensor Array Improved Utility Shielding EM Dispersion Field Experimental Force Field Long-range Tractor Beam Transdimensional Reconstructor Transdimensional Reconstructor High-powered Transdimensional Reconstructor Linked Autogun Multirail Hardcell Cannon Hardcell Cannon Gamma Bomb Array Enhanced Gamma Bomb Array Mini Smartbomb Launcher [Rating: 236] Favorites ----------- Power Quantum Reactor Engine Cooled Ion Engine Reactor Quantum Reactor Propulsion Light Treads Treads Light Treads Wheel Compact Wheel Flight Unit Impulse Thruster Array Utility Huge Storage Unit Device Long-range Sensor Array Storage Huge Storage Unit Processor Advanced Armor Integrity Analyzer Hackware Advanced Hacking Suite Protection Hardened Medium Armor Plating Weapon Flak Gun Energy Gun Advanced Variable Charge Gun Energy Cannon Matter Neutralizer Ballistic Gun Flak Gun Ballistic Cannon Perforator Launcher Gamma Bomb Array Special Weapon Remote Datajack Impact Weapon Core Stripper Slashing Weapon Ripper Piercing Weapon Spear Build | -11 -10 -10 -9 -9 -9 -8 -8 -8 -7 -7 -7 -7 -6 -6 -6 -6 -6 -6 -6 -5 -5 -5 -5 -5 -5 -4 -4 -4 -4 -4 -4 -3 -3 -3 -2 -2 -2 -1 -1 ------- Run | Scr Mat Min Mat Min Exi Min Mat Sto Fac Low Low Dat Pro Fac Was Fac Low Low Zio Pro Fac Ext Cet Arc Hub Fac Was Fac Upp Upp War Pro Res Tes Res Qua Sec Acc Com Slots Evolved 18 | . . . 2 . . . 2 . 2 . . . . 2 . . . . . . 2 . . . . 2 . . . . . . 2 . 2 . . 2 . Power 1 | . . . . . . . . . . . . . . . . . . . . . . . . . . . . . . . . . . . . . . 1 . Propulsion 2 | . . . . . . . 1 . . . . . . 1 . . . . . . . . . . . . . . . . . . . . . . . . . Utility 13 | . . . 1 . . . 1 . 2 . . . . 1 . . . . . . 1 . . . . 2 . . . . . . 2 . 2 . . 1 . Weapon 2 | . . . 1 . . . . . . . . . . . . . . . . . 1 . . . . . . . . . . . . . . . . . . Parts Attached 617 | 6 10 2 30 7 1 . 28 13 23 . 3 13 2 12 8 3 1 1 9 2 17 25 12 2 5 38 1 7 11 4 3 4 28 53 6 53 123 19 32 Power 25 | 1 . . 3 . . . 1 1 1 . 1 1 . 1 . . . . 1 . . 1 1 . . . . . . 2 1 . 1 1 . . 4 1 2 Engine 9 | 1 . . 3 . . . 1 1 1 . 1 1 . . . . . . . . . . . . . . . . . . . . . . . . . . . Core . | . . . . . . . . . . . . . . . . . . . . . . . . . . . . . . . . . . . . . . . . Reactor 16 | . . . . . . . . . . . . . . 1 . . . . 1 . . 1 1 . . . . . . 2 1 . 1 1 . . 4 1 2 Propulsion 60 | 2 . . 12 1 . . 12 4 5 . . 3 . 1 3 . . . 2 . . . 2 . . 1 . 1 . . . . . 2 . 3 1 . 5 Treads 57 | 2 . . 12 1 . . 12 4 5 . . 3 . 1 3 . . . 2 . . . 2 . . 1 . 1 . . . . . 2 . 3 1 . 2 Leg . | . . . . . . . . . . . . . . . . . . . . . . . . . . . . . . . . . . . . . . . . Wheel 1 | . . . . . . . . . . . . . . . . . . . . . . . . . . . . . . . . . . . . . . . 1 Hover . | . . . . . . . . . . . . . . . . . . . . . . . . . . . . . . . . . . . . . . . . Flight 2 | . . . . . . . . . . . . . . . . . . . . . . . . . . . . . . . . . . . . . . . 2 Utility 261 | 1 3 . 6 1 1 . 6 1 6 . . 3 . 3 2 . . 1 3 2 9 10 5 2 5 16 . 3 2 . . . 16 25 4 31 70 9 15 Device 189 | . 2 . 3 . . . 3 . 3 . . 2 . 1 1 . . 1 2 2 7 4 2 1 4 13 . 3 1 . . . 8 17 2 29 67 5 6 Storage 10 | 1 1 . 1 . 1 . . . 1 . . . . . . . . . . . . . . . . . . . . . . . . 1 1 1 . . 2 Processor 13 | . . . . . . . . . 1 . . 1 . . . . . . . . . . 1 . . 1 . . . . . . 2 2 . . 2 . 3 Hackware 10 | . . . . . . . 1 . . . . . . 1 . . . . . . 2 1 . 1 . 1 . . . . . . 2 1 . . . . . Protection 39 | . . . 2 1 . . 2 1 1 . . . . 1 1 . . . 1 . . 5 2 . 1 1 . . 1 . . . 4 4 1 1 1 4 4 Artifact . | . . . . . . . . . . . . . . . . . . . . . . . . . . . . . . . . . . . . . . . . Weapon 271 | 2 7 2 9 5 . . 9 7 11 . 2 6 2 7 3 3 1 . 3 . 8 14 4 . . 21 1 3 9 2 2 4 11 25 2 19 48 9 10 Energy Gun 21 | . . . . . . . . . . . . . . . . . . . . . . . . . . 8 . . 4 1 1 2 3 1 . 1 . . . Energy Cannon 10 | . . . . . . . . . . . . . . . . . . . . . . . . . . . . . . . . . . 6 1 3 . . . Ballistic Gun 163 | 2 5 1 8 2 . . 9 4 9 . 1 4 1 4 2 2 1 . 3 . 4 10 4 . . 12 1 3 5 1 1 2 8 14 1 10 24 4 1 Ballistic Cannon 35 | . . . . 1 . . . . . . . . . . . . . . . . . . . . . . . . . . . . . 3 . 2 22 3 4 Launcher 23 | . 2 1 1 2 . . . 3 2 . 1 . . . . . . . . . . 1 . . . . . . . . . . . 1 . . 2 2 5 Special Weapon 5 | . . . . . . . . . . . . . . 1 . . . . . . 1 2 . . . 1 . . . . . . . . . . . . . Impact Weapon 3 | . . . . . . . . . . . . . . . . . . . . . . . . . . . . . . . . . . . . 3 . . . Slashing Weapon 4 | . . . . . . . . . . . . . . . . . . . . . 3 1 . . . . . . . . . . . . . . . . . Piercing Weapon 7 | . . . . . . . . . . . . 2 1 2 1 1 . . . . . . . . . . . . . . . . . . . . . . . Special Melee Weapon . | . . . . . . . . . . . . . . . . . . . . . . . . . . . . . . . . . . . . . . . . Unidentified Prototypes 28 | . . . 1 . . . 1 1 . . . . . 1 . . . . . . 2 1 . . . . . . . . . . 1 3 1 4 8 4 . Parts Lost 83 | . . . . . . . 4 . 3 . 1 5 . . . . . . . 1 . 3 . . . . . . . . . . 10 6 . 5 2 3 40 Power 7 | . . . . . . . . . . . 1 1 . . . . . . . . . . . . . . . . . . . . 1 . . . 1 . 3 Propulsion 13 | . . . . . . . 2 . 1 . . 2 . . . . . . . . . . . . . . . . . . . . . . . 1 . . 7 Utility 43 | . . . . . . . 1 . 1 . . 1 . . . . . . . 1 . 1 . . . . . . . . . . 7 5 . 2 1 2 21 Weapon 20 | . . . . . . . 1 . 1 . . 1 . . . . . . . . . 2 . . . . . . . . . . 2 1 . 2 . 1 9 Highest Loss Streak 23 | . . . . . . . 2 . 1 . 1 3 . . . . . . . 1 . 2 . . . . . . . . . . 5 2 . 2 1 1 23 Average Slot Usage (%) 88 | . 95 100 98 100 100 100 99 99 99 100 100 98 100 100 88 86 86 86 83 85 87 87 88 88 88 88 89 88 89 88 89 89 75 86 73 75 72 71 60 Engine 4 | . 14 14 11 11 11 11 9 9 7 7 7 6 7 4 . . . . . . . . . . . . . . . . . . . . . . . . . Reactor 2 | . . . . . . . . . . . . . . 1 6 6 6 6 6 6 5 5 5 5 5 5 5 5 5 4 5 5 3 4 4 4 4 4 4 Treads 15 | . 28 28 22 22 22 22 26 27 22 23 23 22 23 26 15 13 13 13 13 13 11 11 11 11 11 10 10 10 10 10 10 10 9 8 8 7 8 8 6 Device 13 | . 10 14 11 11 11 11 9 9 15 15 15 13 15 12 13 13 13 13 13 17 11 11 11 11 10 15 15 15 15 15 15 15 10 15 12 12 16 14 11 Storage 6 | . 14 14 11 11 11 11 9 9 7 7 7 7 7 6 6 6 6 6 6 6 5 5 5 5 5 5 5 5 5 5 5 5 4 4 4 4 5 4 6 Processor 8 | . . . . . . . . . 7 7 7 11 15 13 13 13 13 13 13 13 11 11 11 11 11 10 10 10 10 10 10 10 7 14 17 15 11 16 14 Hackware 8 | . . . . . . . 8 9 7 7 7 7 7 13 8 6 6 6 6 2 11 9 11 11 11 15 15 15 15 15 15 15 12 13 13 13 12 8 4 Protection 6 | . . . 9 11 11 11 9 9 7 7 7 3 . . 3 6 6 6 6 6 5 5 5 5 5 5 5 5 4 5 5 5 4 6 4 4 4 8 5 Ballistic Gun 19 | . 27 27 32 32 33 33 26 26 22 23 22 21 22 17 18 17 20 20 17 20 20 21 23 23 23 19 21 20 18 20 20 19 18 13 2 3 3 3 3 Naked Turns 2 | . . . . . . . . . . . . . . . . . . . . . . . . . . . . . . . . . . . . . . . 2 Heaviest Build 205 | 14 23 23 44 44 64 64 71 72 113 113 113 113 105 114 115 115 115 115 118 119 122 130 136 136 136 137 129 129 130 130 130 130 167 140 162 168 179 205 195 Greatest Support 180 | 40 40 40 40 43 43 43 63 66 64 62 62 70 68 88 140 140 140 140 140 140 140 140 160 160 160 160 160 160 160 160 160 160 160 160 155 170 180 180 180 Greatest Overweight (x) 2 | 1 . . 1 1 1 1 1 1 2 1 1 1 1 1 1 . . . . . . . . . . . . . . . . . 1 . 1 1 . 1 1 Average Overweight (x) . | . . . . 1 1 1 1 1 1 1 1 1 1 1 . . . . . . . . . . . . . . . . . . . . 1 . . 1 . Largest Inventory Capacity 29 | 8 10 10 15 15 20 20 20 20 25 25 25 25 25 25 25 25 25 25 25 25 25 25 25 25 25 25 25 25 25 25 25 25 25 25 25 25 29 29 29 Average Capacity 23 | 6 9 10 14 15 17 20 20 20 24 25 25 25 25 25 25 25 25 25 25 25 25 25 25 25 25 25 25 25 25 25 25 25 25 25 25 25 26 29 24 Most Carried 29 | 2 10 10 15 15 17 17 20 20 25 25 25 25 25 24 25 25 25 25 25 25 25 25 25 25 25 25 25 25 25 25 25 25 25 25 25 25 28 29 26 Average Carried 21 | 1 7 9 14 15 15 16 19 19 22 25 24 24 25 23 24 24 25 24 24 24 24 24 24 25 25 24 24 24 24 25 24 25 24 24 24 24 24 25 14 Final Capacity 29 | 8 10 10 15 15 20 20 20 20 25 25 25 25 25 25 25 25 25 25 25 25 25 25 25 25 25 25 25 25 25 25 25 25 25 25 25 25 29 29 9 Final Carried 28 | 2 10 10 15 15 16 17 20 20 25 25 25 25 25 24 25 25 25 25 25 24 25 25 25 25 25 25 25 25 25 25 25 25 21 25 25 24 28 21 4 Class Distribution -------------------- 21% | Hacker-Skirmisher 17% | Hacker-Mutant 16% | Tank 9% | Scavenger-Mutant 6% | Machinist-Skirmisher 6% | Scavenger-Tank 6% | Skirmisher 4% | Hacker-Gunner 4% | Mutant Dominant Class ---------------- Mutant | -10/Materials Mutant | -10/Mines Tank | -9/Materials Tank | -9/Mines Tank | -9/Exiles Tank | -8/Mines Scavenger-Tank | -8/Materials Tank | -8/Storage Skirmisher | -7/Factory Machinist-Skirmisher | -7/Lower Caves Machinist-Skirmisher | -7/Lower Caves Machinist-Skirmisher | -7/Data Miner Machinist-Skirmisher | -6/Proximity Caves Hacker-Skirmisher | -6/Factory Hacker-Skirmisher | -6/Waste Hacker-Skirmisher | -6/Factory Hacker-Skirmisher | -6/Lower Caves Hacker-Skirmisher | -6/Lower Caves Hacker-Skirmisher | -6/Zion Scavenger-Skirmisher | -5/Proximity Caves Hacker-Skirmisher | -5/Factory Hacker-Skirmisher | -5/Extension Hacker-Gunner | -5/Cetus Scavenger-Gunner | -5/Archives Scavenger-Skirmisher | -5/Hub_04(d) Hacker-Skirmisher | -4/Factory Hacker-Skirmisher | -4/Waste Hacker-Skirmisher | -4/Factory Hacker-Skirmisher | -4/Upper Caves Hacker-Skirmisher | -4/Upper Caves Hacker-Skirmisher | -4/Warlord Hacker-Skirmisher | -3/Proximity Caves Hacker-Skirmisher | -3/Research Hacker-Gunner | -3/Testing Hacker-Mutant | -2/Research Hacker-Mutant | -2/Quarantine Hacker-Mutant | -2/Section 7 Scavenger-Mutant | -1/Access Scavenger-Mutant | -1/Command Resources | -11 -10 -10 -9 -9 -9 -8 -8 -8 -7 -7 -7 -7 -6 -6 -6 -6 -6 -6 -6 -5 -5 -5 -5 -5 -5 -4 -4 -4 -4 -4 -4 -3 -3 -3 -2 -2 -2 -1 -1 ----------- Run | Scr Mat Min Mat Min Exi Min Mat Sto Fac Low Low Dat Pro Fac Was Fac Low Low Zio Pro Fac Ext Cet Arc Hub Fac Was Fac Upp Upp War Pro Res Tes Res Qua Sec Acc Com Matter Collected 47591 | 260 386 110 1605 223 30 174 1546 806 958 107 457 358 65 230 500 211 106 90 91 75 402 1470 681 161 62 1114 341 477 313 252 . 237 1477 3797 660 3146 10691 10045 3877 Remotely 15842 | . . . . . . . . . . . . . . . . . . . . . . . . . . 584 . . 203 . . . 680 1788 425 2235 8305 1622 . Salvage Created 64751 | . 592 99 2156 259 . 204 1891 1881 1228 63 587 373 108 152 1588 265 . 74 . 249 557 1420 1114 385 381 1458 1436 501 313 203 . 363 2331 4599 962 3058 12955 16431 4515 Parts 2184 | . 28 3 148 24 . 20 119 122 74 2 17 20 7 13 29 11 . 2 . 9 37 62 55 19 17 62 31 18 13 6 . 14 125 197 45 132 381 244 78 Haulers Intercepted 29 | . 2 . 6 . . . 6 6 2 . . . . . . . . . . . . 3 . . 1 . . 1 . . . . 1 . . . 1 . . Recyclers Shooed 10 | . 1 . 3 . . . . 1 . . . . . . . . . . . . . . . . . 1 . . . . . . . 1 . . . 2 1 Parts Field Recycled . | . . . . . . . . . . . . . . . . . . . . . . . . . . . . . . . . . . . . . . . . Retrieved Matter . | . . . . . . . . . . . . . . . . . . . . . . . . . . . . . . . . . . . . . . . . Parts Self-Destructed 103 | . . . . . . . . . . 2 11 . 7 . . . 11 1 5 14 . . . . . . . . 11 6 21 14 . . . . . . . Prevented 10 | . . . . . . . . . . . 6 . . . . . . . . . . . . . . . . . . . 4 . . . . . . . . Kills | -11 -10 -10 -9 -9 -9 -8 -8 -8 -7 -7 -7 -7 -6 -6 -6 -6 -6 -6 -6 -5 -5 -5 -5 -5 -5 -4 -4 -4 -4 -4 -4 -3 -3 -3 -2 -2 -2 -1 -1 ------- Run | Scr Mat Min Mat Min Exi Min Mat Sto Fac Low Low Dat Pro Fac Was Fac Low Low Zio Pro Fac Ext Cet Arc Hub Fac Was Fac Upp Upp War Pro Res Tes Res Qua Sec Acc Com Combat Hostiles Destroyed 791 | . 10 5 46 12 . 10 24 31 25 1 11 4 2 5 6 . . . . 6 9 15 17 4 1 20 6 6 6 2 . 5 31 59 12 31 145 173 51 Melee 2 | . . . . . . . . . . . . . . . . . . . . . . . . . . . . . . . . . . 1 . . 1 . . Guns 377 | . 7 3 42 6 . 10 24 23 19 1 10 4 2 5 6 . . . . 6 8 15 17 4 1 20 6 6 6 2 . 5 31 39 . 6 20 8 15 Cannons 364 | . . . . . . . . . . . . . . . . . . . . . . . . . . . . . . . . . . 16 12 24 122 164 26 AOE 46 | . 3 2 4 6 . . . 8 6 . 1 . . . . . . . . . 1 . . . . . . . . . . . . 3 . . 2 . 10 Classes Destroyed 28 | . 6 2 4 . . . . 2 1 . . . . . 1 1 . . . . . 1 . . . . . . 1 1 . . 2 4 . 1 1 . . Worker 38 | . . 1 7 . . 1 1 6 2 . . . . . . . . . . . 1 . . . 1 1 . . . . . . 1 1 3 . 3 5 4 Builder 23 | . . . 1 . . . 1 2 2 . . . . 1 . . . . . . 2 5 . . 2 . . . . . . . 1 2 . . 2 2 . Tunneler 3 | . . . 2 . . . . . . . . . . . . . . . . . . 1 . . . . . . . . . . . . . . . . . Hauler 29 | . 2 . 6 . . . 6 6 2 . . . . . . . . . . . . 3 . . 1 . . 1 . . . . 1 . . . 1 . . Recycler 26 | . 2 . 2 1 . . 6 1 1 . . . . . . . . . . . . 1 . . 1 . . . . . . . 1 . . 1 1 8 . Carrier 31 | . . . . . . . . . . . . . . . . . . . . . . . . . . . . . . . . . . 2 . 1 8 17 3 Mechanic 16 | . . . . . . . . . . . . . . . . . . . . . . . . . . . . . . . . . . 1 . . 4 8 3 Operator 9 | . 1 . 1 . . . 2 . 1 . . . . . . . . . . . . 1 . 1 1 . . . . . . . . 1 . . . . . Watcher 37 | . 3 . 4 . . . 5 2 . . . . . . . . . . . . 2 2 2 . . 2 . . . . . . 1 2 2 2 4 2 2 Swarmer 113 | . 3 3 10 9 . 7 6 7 10 . 1 . . 4 . . . . . 4 3 4 3 . . . . . 3 . . . 5 5 4 . 9 13 . Saboteur 19 | . . . . . . . . . . . . . . . . . . . . . . . . . . . . . . . . . . 3 . . 7 7 2 Grunt 251 | . 7 . 23 3 . 2 7 9 6 . 6 . 1 . . . . . . 2 1 6 4 . . 6 . 1 1 . . 5 6 22 3 9 61 49 11 Brawler 36 | . . . 5 . . . . 1 . . 1 . . . . . . . . . . . 2 . . . . . . . . . 1 2 . . 9 10 5 Duelist 40 | . . . 1 . . 1 1 . 1 . 2 . . . . . . . . . . . . . . 1 . . . . . . . 5 . . 6 13 9 Protector 24 | . . . . . . . . 2 . . . . . . . . . . . . . . . . . . . . . . . . . 1 . 1 5 12 3 Researcher 8 | . . . . . . . . . . . . . . . . . . . . . . . . . . . . . . . . . . 5 . . 3 . . Sentry 66 | . . 2 7 . . . 10 11 5 1 1 . . . . . . . . . 2 1 . 4 1 3 . 1 1 . . . . . 3 . 7 6 . Specialist 2 | . . . . . . . . . . . . . . . . . . . . . . . . . . . . . . . . . 2 . . . . . . Hunter 27 | . . . . . . . . 1 . . . . . . . . . . . . . . . . . . . . . . . . 3 2 2 5 6 6 2 Programmer 106 | . . . . . . . . . 3 . . . 1 1 . . . . . . 3 1 . . . 8 . 2 . 2 . . 9 15 . 11 15 30 5 Behemoth 5 | . . . . . . . . . . . . . . . . . . . . . . 2 . . . . . . . . . . . . . . 1 2 . Compactor 12 | . . . . . . . . . . . . . . . 6 . . . . . . . . . . . 6 . . . . . . . . . . . . Cetus Guard 8 | . . . . . . . . . . . . . . . . . . . . . . . 8 . . . . . . . . . . . . . . . . S7 Guard 2 | . . . . . . . . . . . . . . . . . . . . . . . . . . . . . . . . . . . . . 2 . . Enhanced Grunt 4 | . . . . . . . . . . . . 4 . . . . . . . . . . . . . . . . . . . . . . . . . . . Tracker 14 | . . . . . . . . . . . . . . . . . . . . . . . . . . 1 . 2 . . . . 2 2 . 2 5 . . Combat Programmer 12 | . . . . . . . . . . . . . . . . . . . . . . . . . . 1 . . . . . . 2 2 . 2 5 . . Investigator 4 | . . . . . . . . . . . . . . . . . . . . . . . . . . . . . . . . . . . . . 2 1 1 Striker 24 | . . . . . . . . . . . . . . . . . . . . . . . . . . . . . . . . . 1 . . . 2 16 5 Executioner 18 | . . . . . . . . . . . . . . . . . . . . . . . . . . . . . . . . . . . . . 5 9 4 Fortress 1 | . . . . . . . . . . . . . . . . . . . . . . . . . . . . . . . . . . . . 1 . . . Samaritan 2 | . . . . . . . . . . . . . . . . . . . . . . . . . . . . . . 2 . . . . . . . . . Wasp 2 | . . . . . . . . . . . . . . . . 2 . . . . . . . . . . . . . . . . . . . . . . . Thug 3 | . . . . . . . . . . . . . . . . 1 . . . . . . . . . . . . . . . . . . . . . . 2 Savage 2 | . . . . . . . . . . . . . . . . . . 1 . . . . . . . . . . . . . . . . . . . . 1 Butcher 1 | . . . . . . . . . . . . . . . . . . . . . . 1 . . . . . . . . . . . . . . . . . Martyr 2 | . . . . . . . . . . . . . . . . 2 . . . . . . . . . . . . . . . . . . . . . . . Wizard 2 | . . . . . . . . . . . . . . . . . . . . . . . . . . . . . . . . . . . . . . . 2 Mutant 1 | . . . . . . . . . . . . . . . . . . . . . . . . . . . . . 1 . . . . . . . . . . Commander 1 | . . . . . . . . . . . . . . . . . . . . . . . . . . . . . . . . . . . . . . . 1 Best Kill Streak 46 | . 4 4 8 4 . 4 3 14 5 1 5 3 1 4 2 . . . . 6 3 6 8 2 6 4 1 2 5 2 . 5 7 14 14 6 20 46 16 Combat Bots Only 40 | . 4 3 5 4 . 4 3 6 4 1 5 3 1 4 2 . . . . 6 3 5 7 1 1 4 1 2 5 2 . 5 7 14 10 5 15 40 14 Max Kills in Single Turn 5 | . 2 2 2 4 . 2 2 4 3 1 2 1 1 1 1 2 . 1 . 2 2 2 1 1 2 1 1 1 1 1 . 2 2 3 3 2 4 5 3 Gunslinging 1 | . . . 1 . . 1 . 1 . . 1 . . . . . . . . 1 . . . . . . . . . . . 1 . 1 . . . . . Exploded 4 | . 2 2 2 4 . . . 4 3 . 1 . . . . . . . . . 1 . . . . . . . . . . . . 2 . . 2 . 3 Melee 1 | . . . . . . . . . . . . . . . . . . . . . . . . . . . . . . . . . . 1 . . 1 . . Uniques/NPCs Destroyed 3 | . . . . . . . . . . . . 1 . . . . . . . . . . 1 . . . . . . . . . . . . . . . 1 Data Miner (-7/Data Miner) Revision 17 (-5/Cetus) Warlord (-1/Command) Combat | -11 -10 -10 -9 -9 -9 -8 -8 -8 -7 -7 -7 -7 -6 -6 -6 -6 -6 -6 -6 -5 -5 -5 -5 -5 -5 -4 -4 -4 -4 -4 -4 -3 -3 -3 -2 -2 -2 -1 -1 -------- Run | Scr Mat Min Mat Min Exi Min Mat Sto Fac Low Low Dat Pro Fac Was Fac Low Low Zio Pro Fac Ext Cet Arc Hub Fac Was Fac Upp Upp War Pro Res Tes Res Qua Sec Acc Com Damage Taken 35959 | . 165 161 1027 228 . 323 951 675 1262 83 502 949 51 187 . . . 78 . 43 373 1371 1087 85 100 1158 . 514 322 77 . 286 4675 3036 265 3779 2118 1030 8998 Core 2783 | . 12 38 41 24 . 46 97 69 54 . 68 94 . . . . . . . . . 101 35 . . 80 . 20 . 39 . . 134 233 25 192 12 30 1339 Absorbed by Shields 4231 | . . . . . . . . . . . . . . . . . . . . . . . . . . . . . . . . . . . . . 1166 1068 1997 Reduced by Siege Mode 2107 | . . . . . . . . . . . . . . . . . . . . . 6 53 112 15 . 111 . 63 10 5 . 39 274 513 . 134 101 57 614 Core Remaining (%) 81 | 100 . 80 . . . 72 . 69 . . . . 69 . . . . . . 100 . . . . 86 . . . . . . 87 . 71 . . 84 . . Volleys Fired 1824 | . 41 9 107 15 . 16 108 59 69 2 20 16 3 9 23 5 . . . 4 21 64 40 8 4 69 18 15 65 12 8 21 85 133 19 71 312 212 141 Largest 4 | . 2 2 3 3 . 3 3 3 3 3 3 3 3 3 3 3 . . . 3 4 4 4 4 4 4 4 4 4 4 1 4 4 4 1 2 2 2 3 Hottest 240 | . 46 46 75 75 . 75 84 84 84 84 84 84 84 84 84 84 . . . 84 112 112 120 140 140 140 112 112 112 112 80 112 240 112 105 205 165 130 175 Shots Fired 3848 | . 76 13 315 34 . 48 324 165 193 6 51 48 9 22 67 17 2 3 . 12 76 187 158 32 10 182 70 58 96 28 8 42 274 320 19 88 386 228 181 Gun 3188 | . 74 10 312 30 . 48 324 159 186 6 47 48 9 20 67 17 2 3 . 12 74 167 158 32 10 181 70 58 96 28 8 42 274 268 2 36 166 46 98 Cannon 582 | . . . . 1 . . . . . . . . . . . . . . . . . . . . . . . . . . . . . 50 17 52 218 175 69 Launcher 56 | . 2 3 3 3 . . . 6 7 . 4 . . . . . . . . . . 3 . . . . . . . . . . . 2 . . 2 7 14 Special 22 | . . . . . . . . . . . . . . 2 . . . . . . 2 17 . . . 1 . . . . . . . . . . . . . Kinetic 3596 | . 74 10 312 31 . 48 324 159 186 6 47 48 9 20 67 17 2 3 . 12 74 167 158 32 10 153 70 58 44 22 . 28 249 294 16 74 384 221 167 Thermal 174 | . . . . . . . . . . . . . . . . . . . . . . . . . . 28 . . 52 6 8 14 25 24 3 14 . . . Explosive 35 | . 2 3 3 3 . . . 3 7 . . . . . . . . . . . . . . . . . . . . . . . . 2 . . 2 . 10 Electromagnetic 21 | . . . . . . . . 3 . . 4 . . . . . . . . . . 3 . . . . . . . . . . . . . . . 7 4 Robot Hit Streak 86 | . 13 17 21 5 . 6 19 13 17 7 8 14 15 10 41 35 1 4 . 11 27 35 44 20 21 38 33 23 27 37 . 35 44 70 12 33 64 71 86 Robot Miss Streak 9 | . 3 1 8 5 . 5 6 3 3 3 7 4 6 5 5 4 8 4 . 5 3 8 3 1 1 4 4 5 5 2 . 4 8 5 6 9 6 9 8 Penetration Max 3 | . . . . . . . 1 1 1 . . . . . . . . . . . . . 1 1 . . . . . . . . . 3 1 1 3 3 3 Secondary Targets 44 | . . . 3 2 . 2 2 2 . . 2 . . . . . . . . 2 1 1 7 . . 1 . . . 1 . 2 10 4 . . 2 . . Max Gunslinging Chain 1 | . . . 1 1 . 1 1 1 . . 1 . . . . . . . . 1 1 1 1 . . 1 . . . 1 . 1 1 1 . . 1 . . Shots Hit Robots 2882 | . 57 9 189 18 . 32 213 96 132 5 42 45 7 21 60 13 2 3 . 10 60 140 133 21 2 131 63 52 30 18 . 22 228 260 16 71 307 210 164 Core Hits 3922 | . 34 11 118 19 . 17 74 67 59 6 56 77 11 21 75 36 2 9 . 21 74 141 88 10 5 122 76 67 38 26 . 50 363 489 37 89 621 647 266 Critical Kills 458 | . 1 . 2 . . . . 1 . . . . . . . . . . . . . . 6 3 2 2 . . . . . . . 25 16 27 143 195 35 Critical Parts Destroyed 648 | . 1 . 1 . . . 3 3 1 . . . . . . . . . . . . . 1 2 . 2 . . . . . . . 43 19 34 175 298 65 Critical Strikes 1144 | . 2 . 3 . . . 3 4 1 . . . . . . . . . . . . . 8 5 2 4 . . . . . . . 68 36 61 325 510 112 Destroy 1136 | . 2 . 3 . . . 3 4 1 . . . . . . . . . . . . . 8 5 2 4 . . . . . . . 68 36 61 325 510 104 Blast 8 | . . . . . . . . . . . . . . . . . . . . . . . . . . . . . . . . . . . . . . . 8 Melee Attacks 59 | . . . . . . . . . . . . 3 3 3 4 14 . . . . 8 19 . . . . . . . . . . . . . 5 . . . Kinetic 5 | . . . . . . . . . . . . . . . . . . . . . . . . . . . . . . . . . . . . 5 . . . Impact . | . . . . . . . . . . . . . . . . . . . . . . . . . . . . . . . . . . . . . . . . Slashing 27 | . . . . . . . . . . . . . . . . . . . . . 8 19 . . . . . . . . . . . . . . . . . Piercing 27 | . . . . . . . . . . . . 3 3 3 4 14 . . . . . . . . . . . . . . . . . . . . . . . Sneak Attacks 3 | . . . . . . . . . . . . 1 . . . . . . . . . 2 . . . . . . . . . . . . . . . . . Combat Hostiles . | . . . . . . . . . . . . . . . . . . . . . . . . . . . . . . . . . . . . . . . . Follow-up Attacks . | . . . . . . . . . . . . . . . . . . . . . . . . . . . . . . . . . . . . . . . . Damage Inflicted 81134 | . 1079 442 3333 657 . 552 3637 3389 3460 119 971 1184 220 419 1939 624 57 92 . 221 1566 3292 3015 822 641 3592 1897 1252 730 553 . 724 6493 8510 286 2021 9150 5467 8728 Guns 63849 | . 876 177 2979 240 . 531 3602 2509 2749 119 769 1111 220 403 1939 624 57 92 . 221 1394 3026 3015 819 82 3537 1897 1230 730 553 . 724 6434 7627 71 1438 5849 1761 4444 Cannons 9847 | . . . . . . . . . . . . . . . . . . . . . . . . . . . . . . . . . . 495 215 424 2997 3702 2014 Explosions 6600 | . 189 256 338 394 . . . 828 703 . 202 . . . . . . . . . 158 . . . 507 . . . . . . . 59 388 . . 304 4 2270 Melee 498 | . . . . . . . . . . . . 73 . . . . . . . . . 266 . . . . . . . . . . . . . 159 . . . Ramming 340 | . 14 9 16 23 . 21 35 52 8 . . . . 16 . . . . . . 14 . . 3 52 55 . 22 . . . . . . . . . . . Kinetic 73776 | . 876 177 2979 240 . 531 3602 2509 2749 119 769 1111 220 403 1939 624 57 92 . 221 1394 3026 3015 819 82 3537 1897 1230 730 553 . 724 6355 8122 286 2021 8846 5463 6458 Thermal 864 | . . . . 91 . . . . . . . . . . . . . . . . 158 . . . . . . . . . . . 95 . . . . . 520 Explosive 4022 | . 189 256 338 303 . . . 218 703 . . . . . . . . . . . . . . . . . . . . . . . . 388 . . 304 . 1323 Electromagnetic 1793 | . . . . . . . . 610 . . 202 . . . . . . . . . . . . . 507 . . . . . . . 43 . . . . 4 427 Impact . | . . . . . . . . . . . . . . . . . . . . . . . . . . . . . . . . . . . . . . . . Slashing 266 | . . . . . . . . . . . . . . . . . . . . . . 266 . . . . . . . . . . . . . . . . . Piercing 73 | . . . . . . . . . . . . 73 . . . . . . . . . . . . . . . . . . . . . . . . . . . Highest Corruption 38 | . 4 4 . . . . . . 1 1 1 1 1 . 37 37 37 38 38 . 2 3 3 3 4 5 25 25 27 27 27 . 6 22 . 8 11 . . Average Corruption 10 | . 3 4 . . . . . . 1 1 1 1 1 . 23 37 37 37 38 . 1 2 3 3 3 2 17 25 26 27 27 . 2 15 . 3 10 . . Corruption Purged . | . . . . . . . . . . . . . . . . . . . . . . . . . . . . . . . . . . . . . . . . Effects 732 | . 11 15 . . . . . . 3 4 5 1 3 . 27 41 35 53 6 . 3 37 7 2 1 15 15 65 64 38 4 . 5 87 . 25 160 . . Message Errors 146 | . 2 4 . . . . . . 2 . 1 . 2 . 6 11 5 10 1 . 1 7 2 . 1 6 1 13 9 8 1 . 4 16 . 10 23 . . Matter Fused 131 | . 3 3 . . . . . . . . . . . . 2 7 11 8 . . . 9 1 2 . 3 4 10 8 5 1 . . 18 . 4 32 . . Heat Flow Errors 84 | . 1 4 . . . . . . . . . . . . . 3 3 9 . . . 7 . . . 3 1 7 5 5 . . . 10 . 2 24 . . Energy Discharges 91 | . 2 3 . . . . . . 1 2 1 1 1 . 5 4 5 2 3 . 2 4 1 . . . 1 6 7 5 . . . 9 . 3 23 . . Parts Rejected 1 | . . . . . . . . . . . . . . . . . . . . . . . . . . . . . . . . . . . . . 1 . . Data Loss (minor) 83 | . 2 1 . . . . . . . 2 2 . . . 1 2 2 6 . . . 10 2 . . 2 3 8 4 6 . . 1 10 . 5 14 . . Data Loss (major) 30 | . . . . . . . . . . . . . . . 1 1 1 . . . . . . . . . 1 2 7 1 . . . 5 . 1 10 . . Misfires 22 | . . . . . . . . . . . . . . . 1 2 2 3 . . . . . . . . . . 4 . . . . 2 . . 8 . . Alerts 15 | . . . . . . . . . . . . . . . 1 . . . . . . . . . . . 2 3 1 . . . . 1 . . 7 . . Misdirections 97 | . . . . . . . . . . . . . . . 7 11 6 15 2 . . . . . . . . 14 11 6 2 . . 9 . . 14 . . Weapon Failures 32 | . 1 . . . . . . . . . 1 . . . 3 . . . . . . . 1 . . 1 2 2 8 2 . . . 7 . . 4 . . Overload Shots 3 | . . . . . . . . . . . . . . . . . . . . . . . . . . . . . . . . . 3 . . . . . . Overflow Damage 557 | . 16 29 39 . . . . . 28 . . . . . . . . . . . 7 196 . . 37 . . . . . . . . 10 . 15 . 2 178 Projectiles 52 | . . . . . . . . . . . . . . . . . . . . . . . . . . . . . . . . . . . . . . 2 50 Explosions 277 | . 16 29 39 . . . . . 28 . . . . . . . . . . . 7 . . . 5 . . . . . . . . 10 . 15 . . 128 Melee 228 | . . . . . . . . . . . . . . . . . . . . . . 196 . . 32 . . . . . . . . . . . . . . Knockbacks 318 | . . . 1 . . . . . . . . . . 1 . . . . . . . . . . . 3 . . . . . . . 24 4 15 93 157 20 Impact 5 | . . . 1 . . . . . . . . . . 1 . . . . . . . . . . . 3 . . . . . . . . . . . . . Kinetic 294 | . . . . . . . . . . . . . . . . . . . . . . . . . . . . . . . . . . 23 4 15 87 147 18 Secondary 19 | . . . . . . . . . . . . . . . . . . . . . . . . . . . . . . . . . . 1 . . 6 10 2 Self-Inflicted Damage 925 | . . 39 . . . . . 17 . . . . . . . . . . . . . . . . 100 . . . . . . . 137 . . 69 . 15 548 Shots 22 | . . 1 . . . . . 1 . . . . . . . . . . . . . . . . 1 . . . . . . . 4 . . 1 . 2 12 Rammed 52 | . 7 1 6 5 . 7 5 8 3 . . . . . . . . . . . 1 . . 1 1 5 . 2 . . . . . . . . . . . Targets Rammed 59 | . 7 1 6 5 . 7 8 10 3 . . . . 1 . . . . . . 1 . . 1 2 5 . 2 . . . . . . . . . . . Kicked . | . . . . . . . . . . . . . . . . . . . . . . . . . . . . . . . . . . . . . . . . Crushed 7 | . . . . . . . 3 2 . . . . . 1 . . . . . . . . . . 1 . . . . . . . . . . . . . . Highest Temperature 272 | . 203 235 . . . . 150 . 6 . 6 . . . . 193 240 229 . . . 208 131 37 28 188 132 187 237 190 42 42 272 205 80 172 221 . . Average Temperature 51 | . 103 111 . . . . 71 . 6 . 6 . . . . 89 96 110 . . . 70 38 21 21 29 78 56 42 67 28 21 39 42 35 38 77 . . Received Heat Transfer 3743 | . 84 27 333 57 . 45 459 153 345 18 198 120 9 . . . . . . . 45 135 126 27 . 69 . 18 67 . . 51 114 319 18 234 143 104 425 Effects 3 | . . . . . . . . . . . . . . . . . . . . . . . . . . . . . . . . . 3 . . . . . . Interference 3 | . . . . . . . . . . . . . . . . . . . . . . . . . . . . . . . . . 3 . . . . . . Siege Activations 113 | . . . . . . . . . . . . . . . 3 . . . . 1 6 6 4 3 2 9 3 5 2 1 . 1 3 12 2 6 20 19 5 Total Turns 3696 | . . . . . . . . . . . . . . . 46 . . . . 6 69 80 50 21 13 177 19 175 27 8 . 23 123 280 22 134 1308 830 285 Longest Duration 617 | . . . . . . . . . . . . . . . 22 . . . . 6 40 49 31 11 7 71 7 118 21 8 . 23 50 65 18 65 617 254 100 Robots Corrupted 2 | . . . . . . . . . . . . . . . . . . . . . . . . . 2 . . . . . . . . . . . . . . Combat Hostiles . | . . . . . . . . . . . . . . . . . . . . . . . . . . . . . . . . . . . . . . . . Parts Fried 3 | . . . . . . . . . . . . . . . . . . . . . . . . . 2 . . . . . . . 1 . . . . . . Impact Corruptions 2 | . . . . . . . . . . . . . . . . . . . . . . . . . 2 . . . . . . . . . . . . . . Robots Melted . | . . . . . . . . . . . . . . . . . . . . . . . . . . . . . . . . . . . . . . . . Combat Hostiles . | . . . . . . . . . . . . . . . . . . . . . . . . . . . . . . . . . . . . . . . . Parts Melted 25 | . . . . . . . . . 1 . . . . . . . . . . . . . . . . . . . . . . . . . . . . 24 . Heat Transferred 736 | . . . . 150 . . . . . . . . . . . . . . . . 150 . . . . . . . . . . . 161 . . . . . 275 Parts Sabotaged 1 | . . . . . . . . . . . . . . . . . . . . . . . . . . . . . . . . . . 1 . . . . . Parts Stolen . | . . . . . . . . . . . . . . . . . . . . . . . . . . . . . . . . . . . . . . . . Parts Stripped . | . . . . . . . . . . . . . . . . . . . . . . . . . . . . . . . . . . . . . . . . Power Chain Reactions 8 | . . . . . . . . . . . . . . . . . . . . . . 1 . . . . . . . . . . 2 . . . . 3 2 Missiles Intercepted . | . . . . . . . . . . . . . . . . . . . . . . . . . . . . . . . . . . . . . . . . Alert | -11 -10 -10 -9 -9 -9 -8 -8 -8 -7 -7 -7 -7 -6 -6 -6 -6 -6 -6 -6 -5 -5 -5 -5 -5 -5 -4 -4 -4 -4 -4 -4 -3 -3 -3 -2 -2 -2 -1 -1 ------- Run | Scr Mat Min Mat Min Exi Min Mat Sto Fac Low Low Dat Pro Fac Was Fac Low Low Zio Pro Fac Ext Cet Arc Hub Fac Was Fac Upp Upp War Pro Res Tes Res Qua Sec Acc Com Peak Influence 6456 | . 282 82 757 425 . 100 331 526 900 . . . . 151 1 150 . . . . 677 563 507 283 541 621 204 277 . . . . 842 1379 589 633 3105 6456 5889 Initial 4131 | . . 7 21 295 . . . 139 151 . . . . 9 . . . . . . . 261 264 122 98 264 204 142 . . . . . 473 531 330 345 1862 4131 Average 905 | . 116 56 350 284 . 45 166 217 362 . . . . 78 . 60 . . . . 339 245 341 230 190 207 204 113 . . . . 371 729 525 379 1587 4750 4818 Maximum Alert Level 5 | . 1 . 3 2 . . 1 2 3 . . . . . . . . . . . 2 2 2 1 2 2 1 1 . . . . 3 4 2 2 5 5 5 Low Security (%) 35 | 100 84 100 37 19 . 100 56 58 21 . . . . 100 100 100 . . . . 45 38 3 29 87 54 . 81 . . . . 21 . . 11 . . . Level 1 23 | . 15 . 4 56 . . 43 35 46 . . . . . . . . . . . . 50 75 70 . 14 100 18 . . . . 35 11 9 45 5 . . Level 2 19 | . . . 52 24 . . . 6 23 . . . . . . . . . . . 55 11 20 . 12 31 . . . . . . 35 46 90 43 19 . . Level 3 4 | . . . 5 . . . . . 8 . . . . . . . . . . . . . . . . . . . . . . . 7 29 . . 16 . . Level 4 2 | . . . . . . . . . . . . . . . . . . . . . . . . . . . . . . . . . . 12 . . 19 . . Level 5 1 | . . . . . . . . . . . . . . . . . . . . . . . . . . . . . . . . . . . . . . 5 32 High Security 13 | . . . . . . . . . . . . . . . . . . . . . . . . . . . . . . . . . . . . . 38 94 67 Max Security . | . . . . . . . . . . . . . . . . . . . . . . . . . . . . . . . . . . . . . . . . Sterilizations 2 | . . . . . . . . . . . . . . . . . . . . . . . . . . . . . . . . . . . . . 1 1 . Squads Dispatched 204 | . 4 . 8 1 . . 3 4 6 . 1 . . 3 . 3 . . . . 2 1 . . 1 7 . 6 . . . . 12 16 1 12 36 49 28 Investigation 17 | . 2 . 3 . . . . . 2 . . . . . . 2 . . . . . 1 . . . . . . . . . . . 2 . 2 3 . . Extermination 28 | . . . . . . . . . 3 . . . . 1 . 1 . . . . 1 . . . . 3 . 2 . . . . 2 5 . 5 4 . 1 Reinforcement 22 | . 2 . 2 1 . . 3 2 1 . . . . 2 . . . . . . . . . . 1 1 . 1 . . . . 2 . 1 1 . . 2 Assault 106 | . . . 3 . . . . 2 . . 1 . . . . . . . . . 1 . . . . 1 . . . . . . 1 6 . 1 21 44 25 Garrison 10 | . . . . . . . . . . . . . . . . . . . . . . . . . . . . . . . . . 4 . . . 1 5 . Intercept 21 | . . . . . . . . . . . . . . . . . . . . . . . . . . 2 . 3 . . . . 3 3 . 3 7 . . Construction Impeded 3 | . . . . 1 . . . . . . . . . 1 . . . . . . . . . . 1 . . . . . . . . . . . . . . Haulers Reinforced 4 | . . . . . . . . . . . . . . 1 . . . . . . . . . . . . . 1 . . . . 1 . 1 . . . . Cargo Convoy Interrupts . | . . . . . . . . . . . . . . . . . . . . . . . . . . . . . . . . . . . . . . . . Stealth | -11 -10 -10 -9 -9 -9 -8 -8 -8 -7 -7 -7 -7 -6 -6 -6 -6 -6 -6 -6 -5 -5 -5 -5 -5 -5 -4 -4 -4 -4 -4 -4 -3 -3 -3 -2 -2 -2 -1 -1 --------- Run | Scr Mat Min Mat Min Exi Min Mat Sto Fac Low Low Dat Pro Fac Was Fac Low Low Zio Pro Fac Ext Cet Arc Hub Fac Was Fac Upp Upp War Pro Res Tes Res Qua Sec Acc Com Distress Signals 30 | . 2 . 2 . . . 3 3 1 . . . . . . . . . . . . 2 2 . 1 2 . . . . 1 . . . 3 . 5 1 2 Communications Jammed . | . . . . . . . . . . . . . . . . . . . . . . . . . . . . . . . . . . . . . . . . Distress Signals . | . . . . . . . . . . . . . . . . . . . . . . . . . . . . . . . . . . . . . . . . Times Spotted 1080 | . 19 5 64 10 . 12 50 45 29 1 11 4 3 6 6 1 . 1 . 8 12 38 18 11 2 23 6 7 6 2 1 5 50 68 13 27 174 214 128 Peak Tracking Total 23 | . 4 3 6 4 . 4 4 10 4 1 9 2 2 4 2 1 . 1 . 5 2 6 5 1 2 4 2 3 4 2 1 5 12 9 8 4 15 18 23 Tactical Retreats 49 | . . . 3 1 . 2 9 3 1 . 2 . 1 . . . . . . . . 4 . . . 1 . . . . . . . 1 . . 7 4 10 Traps | -11 -10 -10 -9 -9 -9 -8 -8 -8 -7 -7 -7 -7 -6 -6 -6 -6 -6 -6 -6 -5 -5 -5 -5 -5 -5 -4 -4 -4 -4 -4 -4 -3 -3 -3 -2 -2 -2 -1 -1 ------- Run | Scr Mat Min Mat Min Exi Min Mat Sto Fac Low Low Dat Pro Fac Was Fac Low Low Zio Pro Fac Ext Cet Arc Hub Fac Was Fac Upp Upp War Pro Res Tes Res Qua Sec Acc Com Traps Triggered 24 | . 3 . 1 . . . . . 4 . . . . 1 . . . . . . 1 3 . . . 1 . . . . . . 1 1 . 1 4 1 2 Indirectly . | . . . . . . . . . . . . . . . . . . . . . . . . . . . . . . . . . . . . . . . . Trap Hack Attempts . | . . . . . . . . . . . . . . . . . . . . . . . . . . . . . . . . . . . . . . . . Triggered . | . . . . . . . . . . . . . . . . . . . . . . . . . . . . . . . . . . . . . . . . Disarmed . | . . . . . . . . . . . . . . . . . . . . . . . . . . . . . . . . . . . . . . . . Reprogrammed 1 | . . . . . . . 1 . . . . . . . . . . . . . . . . . . . . . . . . . . . . . . . . Reused . | . . . . . . . . . . . . . . . . . . . . . . . . . . . . . . . . . . . . . . . . Traps Extracted . | . . . . . . . . . . . . . . . . . . . . . . . . . . . . . . . . . . . . . . . . Installed . | . . . . . . . . . . . . . . . . . . . . . . . . . . . . . . . . . . . . . . . . Triggered 12 | . . . . . . . . . . . 3 . . . . . . . . . . . . . . . . . . . 9 . . . . . . . . Machines | -11 -10 -10 -9 -9 -9 -8 -8 -8 -7 -7 -7 -7 -6 -6 -6 -6 -6 -6 -6 -5 -5 -5 -5 -5 -5 -4 -4 -4 -4 -4 -4 -3 -3 -3 -2 -2 -2 -1 -1 ---------- Run | Scr Mat Min Mat Min Exi Min Mat Sto Fac Low Low Dat Pro Fac Was Fac Low Low Zio Pro Fac Ext Cet Arc Hub Fac Was Fac Upp Upp War Pro Res Tes Res Qua Sec Acc Com Machines Disabled 82 | . 1 . . 2 . 1 4 2 12 . 1 . . . . . . . . . 3 3 . 2 13 1 . . 1 . . . 3 5 . 7 15 3 3 Max in Single Turn 12 | . 1 . . 2 . 1 2 1 6 . 1 . . . . . . . . . 3 1 . 1 12 1 . . 1 . . . 2 1 . 4 1 2 2 Garrison Access 8 | . . . . . . . 1 1 2 . . . . . . . . . . . 2 . . . . 1 . . . . . . . . . . 1 . . Phase Generator 1 | . . . . . . . . . . . . . . . . . . . . . . . . . . . . . . . . . . . . . . . 1 Network Hub 1 | . . . . . . . . . . . . . . . . . . . . . . . . . 1 . . . . . . . . . . . . . . Energy Cycler 1 | . . . . . . . . . . . . . . . . . . . . . . . . . . . . . . . . . . . . . . 1 . Machines Sabotaged . | . . . . . . . . . . . . . . . . . . . . . . . . . . . . . . . . . . . . . . . . Garrisons Compromised . | . . . . . . . . . . . . . . . . . . . . . . . . . . . . . . . . . . . . . . . . Overloaded Fab Kills . | . . . . . . . . . . . . . . . . . . . . . . . . . . . . . . . . . . . . . . . . Fab Network Shutdowns 4 | . . . . . . . . . 1 . . . . . . . . . . . 1 . . . . 1 . . . . . . 1 . . . . . . Hacking | -11 -10 -10 -9 -9 -9 -8 -8 -8 -7 -7 -7 -7 -6 -6 -6 -6 -6 -6 -6 -5 -5 -5 -5 -5 -5 -4 -4 -4 -4 -4 -4 -3 -3 -3 -2 -2 -2 -1 -1 --------- Run | Scr Mat Min Mat Min Exi Min Mat Sto Fac Low Low Dat Pro Fac Was Fac Low Low Zio Pro Fac Ext Cet Arc Hub Fac Was Fac Upp Upp War Pro Res Tes Res Qua Sec Acc Com Machines Accessed 118 | . 8 . 10 . 1 . 10 8 11 1 . 4 . . . 4 . 1 1 . 6 9 1 . . 6 . 4 . 1 1 1 3 9 1 5 9 2 1 Terminals 74 | . 5 . 8 . . . 7 7 5 . . . . . . 2 . 1 . . 3 9 1 . . 2 . 2 . . . 1 1 7 1 3 7 1 1 Fabricators 10 | . . . . . . . . . 3 . . . . . . 2 . . . . 1 . . . . 1 . . . . . . 1 1 . . . 1 . Repair Stations 10 | . 1 . 1 . . . 2 . 1 . . . . . . . . . . . . . . . . . . 1 . . . . 1 1 . 1 1 . . Recycling Units 4 | . 2 . 1 . . . . . . . . . . . . . . . . . . . . . . . . 1 . . . . . . . . . . . Scanalyzers 3 | . . . . . . . . . . . . . . . . . . . . . . . . . . 2 . . . . . . . . . 1 . . . Garrison Access 8 | . . . . . . . 1 1 2 . . . . . . . . . . . 2 . . . . 1 . . . . . . . . . . 1 . . Total Hacks 438 | . 22 . 33 . 4 . 38 25 34 1 . 28 . . . 10 . 1 5 . 24 35 1 . . 39 . 21 . 1 1 1 23 36 5 19 22 6 3 Successful 312 | . 17 . 20 . 4 . 25 15 24 1 . 28 . . . 4 . 1 5 . 14 15 1 . . 34 . 16 . 1 1 1 19 26 4 17 15 3 1 Failed 126 | . 5 . 13 . . . 13 10 10 . . . . . . 6 . . . . 10 20 . . . 5 . 5 . . . . 4 10 1 2 7 3 2 Catastrophic 16 | . . . 1 . . . . 1 . . . . . . . 1 . . . . 3 7 . . . . . . . . . . . 2 . 1 . . . Database Lockouts . | . . . . . . . . . . . . . . . . . . . . . . . . . . . . . . . . . . . . . . . . Manual 200 | . 18 . 26 . . . 16 15 16 . . . . . . 1 . . . . 17 19 . . . 13 . 6 . . 1 . 7 20 5 11 7 2 . Terminals 267 | . 18 . 30 . . . 32 23 12 . . . . . . 3 . 1 . . 16 35 1 . . 17 . 7 . . . 1 4 25 5 13 19 2 3 Fabricators 64 | . . . . . . . . . 15 . . . . . . 7 . . . . 4 . . . . 15 . . . . . . 14 5 . . . 4 . Repair Stations 42 | . 2 . 2 . . . 4 . 4 . . . . . . . . . . . . . . . . . . 13 . . . . 5 6 . 4 2 . . Recycling Units 4 | . 2 . 1 . . . . . . . . . . . . . . . . . . . . . . . . 1 . . . . . . . . . . . Scanalyzers 7 | . . . . . . . . . . . . . . . . . . . . . . . . . . 5 . . . . . . . . . 2 . . . Garrison Access 14 | . . . . . . . 2 2 3 . . . . . . . . . . . 4 . . . . 2 . . . . . . . . . . 1 . . Terminal Hacks 156 | . 8 . 11 . 4 . 14 11 3 1 . 28 . . . 1 . 1 5 . 4 11 1 . . 11 . 3 . 1 1 1 3 12 3 8 9 . 1 Record 17 | . . . . . 4 . . . . . . 11 . . . . . 1 . . . . . . . . . . . . . 1 . . . . . . . Part Schematic 24 | . 1 . . . . . . . 1 . . 8 . . . . . . 5 . 2 1 . . . 4 . . . . . . . 1 . 1 . . . Robot Schematic 6 | . . . . . . . . . . . . 6 . . . . . . . . . . . . . . . . . . . . . . . . . . . Prototype ID Bank 5 | . . . . . . . 1 1 . . . 3 . . . . . . . . . . . . . . . . . . . . . . . . . . . Open Door 15 | . . . . . . . . 2 . 1 . . . . . . . . . . . 5 1 . . . . . . 1 1 . . 1 . . 3 . . Level Access Points 2 | . . . . . . . . . . . . . . . . . . . . . . . . . . 1 . . . . . . . 1 . . . . . Branch Access Points 7 | . . . . . . . 1 . 1 . . . . . . 1 . . . . . . . . . 1 . 1 . . . . 1 . 1 . . . . Emergency Access Points 1 | . . . . . . . . . . . . . . . . . . . . . . . . . . . . . . . . . . 1 . . . . . Terminal Index 5 | . 1 . 1 . . . 1 1 1 . . . . . . . . . . . . . . . . . . . . . . . . . . . . . . Repair Station Index 1 | . . . . . . . 1 . . . . . . . . . . . . . . . . . . . . . . . . . . . . . . . . Alert Level 21 | . 1 . 3 . . . 3 2 . . . . . . . . . . . . . 2 . . . 2 . . . . . . 1 3 . 3 1 . . Unreport Threat 24 | . . . 1 . . . 1 3 . . . . . . . . . . . . . 2 . . . 3 . . . . . . . 5 2 2 5 . . Locate Traps 5 | . 1 . 1 . . . 2 . . . . . . . . . . . . . . . . . . . . . . . . . . . . 1 . . . Reprogram Traps 1 | . . . . . . . 1 . . . . . . . . . . . . . . . . . . . . . . . . . . . . . . . . Recall Reinforcements 1 | . . . . . . . . . . . . . . . . . . . . . . . . . . . . 1 . . . . . . . . . . . Hauler Manifests 6 | . . . 1 . . . 1 1 . . . . . . . . . . . . 1 1 . . . . . 1 . . . . . . . . . . . Registered Prototypes 1 | . . . 1 . . . . . . . . . . . . . . . . . . . . . . . . . . . . . . . . . . . . Zone Layout 13 | . 4 . 3 . . . 2 1 . . . . . . . . . . . . 1 . . . . . . . . . . . 1 . . 1 . . . Disengage Seal 1 | . . . . . . . . . . . . . . . . . . . . . . . . . . . . . . . . . . . . . . . 1 Fabricator Hacks 39 | . . . . . . . . . 9 . . . . . . 3 . . . . 2 . . . . 12 . . . . . . 8 3 . . . 2 . Network Status 1 | . . . . . . . . . 1 . . . . . . . . . . . . . . . . . . . . . . . . . . . . . . Load Schematic 17 | . . . . . . . . . 3 . . . . . . 2 . . . . 1 . . . . 3 . . . . . . 5 2 . . . 1 . Build 21 | . . . . . . . . . 5 . . . . . . 1 . . . . 1 . . . . 9 . . . . . . 3 1 . . . 1 . Repair Station Hacks 37 | . 2 . 2 . . . 3 . 4 . . . . . . . . . . . . . . . . . . 10 . . . . 4 6 . 4 2 . . Scan Component 19 | . 1 . 1 . . . 2 . 2 . . . . . . . . . . . . . . . . . . 5 . . . . 2 3 . 2 1 . . Repair 18 | . 1 . 1 . . . 1 . 2 . . . . . . . . . . . . . . . . . . 5 . . . . 2 3 . 2 1 . . Recycling Unit Hacks 1 | . . . . . . . . . . . . . . . . . . . . . . . . . . . . 1 . . . . . . . . . . . Report Inventory 1 | . . . . . . . . . . . . . . . . . . . . . . . . . . . . 1 . . . . . . . . . . . Scanalyzer 7 | . . . . . . . . . . . . . . . . . . . . . . . . . . 5 . . . . . . . . . 2 . . . Insert Component 4 | . . . . . . . . . . . . . . . . . . . . . . . . . . 2 . . . . . . . . . 2 . . . Analyze 3 | . . . . . . . . . . . . . . . . . . . . . . . . . . 3 . . . . . . . . . . . . . Garrison Access Hacks 8 | . . . . . . . 1 1 2 . . . . . . . . . . . 2 . . . . 1 . . . . . . . . . . 1 . . Seal Access 8 | . . . . . . . 1 1 2 . . . . . . . . . . . 2 . . . . 1 . . . . . . . . . . 1 . . Unauthorized Hacks 64 | . 7 . 7 . . . 7 3 6 . . . . . . . . . . . 6 4 . . . 5 . 2 . . . . 4 5 1 3 3 1 . Terminals 51 | . 5 . 6 . . . 7 3 4 . . . . . . . . . . . 4 4 . . . 2 . 2 . . . . 1 5 1 3 3 1 . Assimilate 4 | . . . . . . . . . 1 . . . . . . . . . . . 1 . . . . . . . . . . . . 1 1 . . . . Botnet 46 | . 5 . 6 . . . 6 3 3 . . . . . . . . . . . 3 4 . . . 2 . 2 . . . . 1 4 . 3 3 1 . Operators 1 | . . . . . . . 1 . . . . . . . . . . . . . . . . . . . . . . . . . . . . . . . . Fabricators 10 | . . . . . . . . . 2 . . . . . . . . . . . 2 . . . . 3 . . . . . . 3 . . . . . . Report 2 | . . . . . . . . . . . . . . . . . . . . . . . . . . 1 . . . . . . 1 . . . . . . Prioritize 4 | . . . . . . . . . 1 . . . . . . . . . . . 1 . . . . 1 . . . . . . 1 . . . . . . Siphon 4 | . . . . . . . . . 1 . . . . . . . . . . . 1 . . . . 1 . . . . . . 1 . . . . . . Repair Stations . | . . . . . . . . . . . . . . . . . . . . . . . . . . . . . . . . . . . . . . . . Recycling Units 3 | . 2 . 1 . . . . . . . . . . . . . . . . . . . . . . . . . . . . . . . . . . . . Tunnel 3 | . 2 . 1 . . . . . . . . . . . . . . . . . . . . . . . . . . . . . . . . . . . . Scanalyzers . | . . . . . . . . . . . . . . . . . . . . . . . . . . . . . . . . . . . . . . . . Garrison Access . | . . . . . . . . . . . . . . . . . . . . . . . . . . . . . . . . . . . . . . . . Data Cores Recovered 2 | . . . . . . . . . . . . . . . . . . . . . 1 1 . . . . . . . . . . . . . . . . . Used 2 | . . . . . . . . . . . . . . . . . . . . . 1 1 . . . . . . . . . . . . . . . . . Hacking Detections 76 | . 5 . 9 . . . 10 6 9 . . . . . . 4 . . . . 3 3 1 . . 3 . 3 . . . . 1 7 1 3 5 2 1 Full Trace Events 12 | . . . 1 . . . . 1 2 . . . . . . 2 . . . . . 1 . . . . . . . . . . . 2 . . 3 . . Feedback Events 3 | . . . . . . . . . 1 . . . . . . . . . . . . . . . . . . . . . . . . 1 . . 1 . . Corruption 3 | . . . . . . . . . 1 . . . . . . . . . . . . . . . . . . . . . . . . 1 . . 1 . . Feedback Blocked . | . . . . . . . . . . . . . . . . . . . . . . . . . . . . . . . . . . . . . . . . Robot Schematics Acquired 6 | . . . . . . . . . . . . 6 . . . . . . . . . . . . . . . . . . . . . . . . . . . Robots Built . | . . . . . . . . . . . . . . . . . . . . . . . . . . . . . . . . . . . . . . . . Matter . | . . . . . . . . . . . . . . . . . . . . . . . . . . . . . . . . . . . . . . . . Time . | . . . . . . . . . . . . . . . . . . . . . . . . . . . . . . . . . . . . . . . . Total Robot Build Rating . | . . . . . . . . . . . . . . . . . . . . . . . . . . . . . . . . . . . . . . . . Part Schematics Acquired 25 | . 1 . . . . . . . 1 . . 8 . . . . . . 5 . 2 1 . . . 5 . . . . . . . 1 . 1 . . . Parts Built 28 | . . . . . . . . . 9 . . . . . . 1 . . . . 2 . . . . 12 . . . . . . 2 1 . . . 1 . Matter 3660 | . . . . . . . . . 690 . . . . . . 285 . . . . 146 . . . . 1135 . . . . . . 735 384 . . . 285 . Time 1256 | . . . . . . . . . 235 . . . . . . 76 . . . . 73 . . . . 412 . . . . . . 342 68 . . . 50 . Total Part Build Rating 123 | . . . . . . . . . 33 . . . . . . 5 . . . . 6 . . . . 55 . . . . . . 11 8 . . . 5 . Parts Repaired 18 | . 1 . 1 . . . 1 . 2 . . . . . . . . . . . . . . . . . . 5 . . . . 2 3 . 2 1 . . Time 600 | . 32 . 32 . . . 26 . 88 . . . . . . . . . . . . . . . . . . 151 . . . . 28 54 . 170 19 . . Parts Recycled . | . . . . . . . . . . . . . . . . . . . . . . . . . . . . . . . . . . . . . . . . Recycled Matter . | . . . . . . . . . . . . . . . . . . . . . . . . . . . . . . . . . . . . . . . . Retrieved Matter . | . . . . . . . . . . . . . . . . . . . . . . . . . . . . . . . . . . . . . . . . Retrieved Components . | . . . . . . . . . . . . . . . . . . . . . . . . . . . . . . . . . . . . . . . . Parts Scanalyzed 2 | . . . . . . . . . . . . . . . . . . . . . . . . . . 2 . . . . . . . . . . . . . Part Schematics Acquired 2 | . . . . . . . . . . . . . . . . . . . . . . . . . . 2 . . . . . . . . . . . . . Parts Damaged . | . . . . . . . . . . . . . . . . . . . . . . . . . . . . . . . . . . . . . . . . Bothacking | -11 -10 -10 -9 -9 -9 -8 -8 -8 -7 -7 -7 -7 -6 -6 -6 -6 -6 -6 -6 -5 -5 -5 -5 -5 -5 -4 -4 -4 -4 -4 -4 -3 -3 -3 -2 -2 -2 -1 -1 ------------ Run | Scr Mat Min Mat Min Exi Min Mat Sto Fac Low Low Dat Pro Fac Was Fac Low Low Zio Pro Fac Ext Cet Arc Hub Fac Was Fac Upp Upp War Pro Res Tes Res Qua Sec Acc Com Used RIF Installer . | . . . . . . . . . . . . . . . . . . . . . . . . . . . . . . . . . . . . . . . . Robots Hacked 7 | . . . . . . . . . . . . . . 2 . . . . . . 2 2 . . . 1 . . . . . . . . . . . . . Non-combat 5 | . . . . . . . . . . . . . . 2 . . . . . . 2 . . . . 1 . . . . . . . . . . . . . Combat 2 | . . . . . . . . . . . . . . . . . . . . . . 2 . . . . . . . . . . . . . . . . . Robot Hacks Applied 7 | . . . . . . . . . . . . . . 2 . . . . . . 2 2 . . . 1 . . . . . . . . . . . . . parse_system 2 | . . . . . . . . . . . . . . . . . . . . . . 2 . . . . . . . . . . . . . . . . . no_distress 1 | . . . . . . . . . . . . . . 1 . . . . . . . . . . . . . . . . . . . . . . . . . find_chute 4 | . . . . . . . . . . . . . . 1 . . . . . . 2 . . . . 1 . . . . . . . . . . . . . Relay Couplers Released . | . . . . . . . . . . . . . . . . . . . . . . . . . . . . . . . . . . . . . . . . Robots Rewired 21 | . . . . . . . . . . . 1 . . . . . . . . . 1 19 . . . . . . . . . . . . . . . . . Allies Hacked 1 | . . . . . . . . . . . . . . . . . . . . . . 1 . . . . . . . . . . . . . . . . . Hacks Repelled 1 | . . . . . . . . . . . . . . . . . . . . . . 1 . . . . . . . . . . . . . . . . . Allies | -11 -10 -10 -9 -9 -9 -8 -8 -8 -7 -7 -7 -7 -6 -6 -6 -6 -6 -6 -6 -5 -5 -5 -5 -5 -5 -4 -4 -4 -4 -4 -4 -3 -3 -3 -2 -2 -2 -1 -1 -------- Run | Scr Mat Min Mat Min Exi Min Mat Sto Fac Low Low Dat Pro Fac Was Fac Low Low Zio Pro Fac Ext Cet Arc Hub Fac Was Fac Upp Upp War Pro Res Tes Res Qua Sec Acc Com Total Allies 57 | . . . . . . . . 2 1 . 1 . . . 19 . . . 4 . 1 27 . . . . . . . . . . . 1 1 . . . . Largest Group 19 | . . . . . . . . 2 2 . 1 . . . 19 18 10 10 8 8 2 11 8 . . . . . . . . . . 1 1 . . . . Highest-Rated Group 696 | . . . . . . . . 62 62 . 16 . . . 696 667 394 392 251 251 61 443 239 . . . . . . . . . . 44 10 . . . . Highest-Rated Ally 156 | . . . . . . . . 31 31 . 16 . . . 50 50 46 46 46 46 32 156 37 . . . . . . . . . . 44 10 . . . . Total Orders . | . . . . . . . . . . . . . . . . . . . . . . . . . . . . . . . . . . . . . . . . Ally Attacks 302 | . . . . . . . . 14 22 . 4 . . . . 47 28 22 . 28 2 130 5 . . . . . . . . . . . . . . . . Total Damage 6670 | . . . . . . . . 249 297 . 47 . . . . 1032 616 394 . 451 36 3451 97 . . . . . . . . . . . . . . . . Kills 44 | . . . . . . . . 5 3 . . . . . . 4 4 1 . 3 . 24 . . . . . . . . . . . . . . . . . Allies Corrupted 3 | . . . . . . . . . . . . . . . . . . 2 . . . 1 . . . . . . . . . . . . . . . . . Allies Melted . | . . . . . . . . . . . . . . . . . . . . . . . . . . . . . . . . . . . . . . . . Intel | -11 -10 -10 -9 -9 -9 -8 -8 -8 -7 -7 -7 -7 -6 -6 -6 -6 -6 -6 -6 -5 -5 -5 -5 -5 -5 -4 -4 -4 -4 -4 -4 -3 -3 -3 -2 -2 -2 -1 -1 ------- Run | Scr Mat Min Mat Min Exi Min Mat Sto Fac Low Low Dat Pro Fac Was Fac Low Low Zio Pro Fac Ext Cet Arc Hub Fac Was Fac Upp Upp War Pro Res Tes Res Qua Sec Acc Com Robot Analysis Total 116 | . . . . . . . . . . . . 116 . . . . . . . . . . . . . . . . . . . . . . . . . . . Derelict Logs Recovered 9 | . . 1 . . . . . . . 2 1 . . . . . 1 . 3 1 . . . . . . . . . . . . . . . . . . . Drone Launches . | . . . . . . . . . . . . . . . . . . . . . . . . . . . . . . . . . . . . . . . . Drone Recoveries . | . . . . . . . . . . . . . . . . . . . . . . . . . . . . . . . . . . . . . . . . Exploration | -11 -10 -10 -9 -9 -9 -8 -8 -8 -7 -7 -7 -7 -6 -6 -6 -6 -6 -6 -6 -5 -5 -5 -5 -5 -5 -4 -4 -4 -4 -4 -4 -3 -3 -3 -2 -2 -2 -1 -1 ------------- Run | Scr Mat Min Mat Min Exi Min Mat Sto Fac Low Low Dat Pro Fac Was Fac Low Low Zio Pro Fac Ext Cet Arc Hub Fac Was Fac Upp Upp War Pro Res Tes Res Qua Sec Acc Com Turns Passed 49361 | 68 1306 762 3078 1482 456 1638 3597 1648 3188 1065 1044 462 870 495 406 567 544 715 1450 538 900 2437 477 182 74 1508 304 1062 964 649 691 661 1369 1890 380 1917 4233 3161 1123 Spaces Moved 18697 | 45 669 455 1003 545 175 597 1166 540 995 384 363 136 291 161 154 280 324 428 891 298 402 1039 200 65 21 441 140 415 503 356 378 346 378 670 111 526 1407 734 665 Core 24 | 13 . . . . . . . . . . . . . . . . . . . . . . . . . . . . . . . . . . . . . . 11 Treads 18236 | 32 669 455 1003 545 175 597 1166 540 995 384 363 136 291 161 154 280 324 428 891 298 402 1039 200 65 21 441 140 415 503 356 378 346 378 670 111 526 1407 734 217 Legs . | . . . . . . . . . . . . . . . . . . . . . . . . . . . . . . . . . . . . . . . . Wheels . | . . . . . . . . . . . . . . . . . . . . . . . . . . . . . . . . . . . . . . . . Hover . | . . . . . . . . . . . . . . . . . . . . . . . . . . . . . . . . . . . . . . . . Flight 437 | . . . . . . . . . . . . . . . . . . . . . . . . . . . . . . . . . . . . . . . 437 Fastest Speed 42 | 50 160 160 160 260 260 260 260 245 253 261 261 258 266 267 160 160 160 160 160 160 160 160 160 160 160 160 160 160 160 160 160 160 160 160 275 160 160 260 42 Average Speed 200 | 129 160 160 245 260 260 260 260 250 260 261 261 262 266 267 170 160 160 160 160 160 160 160 160 160 160 160 160 160 160 160 160 160 252 167 275 250 160 260 104 Slowest Speed 345 | 160 160 160 260 260 260 260 260 260 345 261 261 266 266 267 267 160 160 160 160 160 160 160 160 160 160 160 160 160 160 160 160 160 260 170 275 275 160 260 260 Overloaded Moves . | . . . . . . . . . . . . . . . . . . . . . . . . . . . . . . . . . . . . . . . . Propulsion Burnouts . | . . . . . . . . . . . . . . . . . . . . . . . . . . . . . . . . . . . . . . . . Robots Hopped 17 | . . . . . . . . . . . . . . . . . . . . . . . . . . . . . . . . . . . . . . . 17 Cave-ins Triggered 1 | . . . . . . . . . . . . . . . . . . . . . . . . . . . . . . . . . 1 . . . . . . Teleports 2 | . . . . . . . . . . . . . . . . . . . . . . . . . . . . . . . . . . . . . . 2 . Exploration Rate (%) 53 | 3 93 97 91 99 54 95 92 91 30 62 58 80 42 8 78 8 57 58 83 51 12 81 70 79 8 11 76 6 56 49 65 47 10 61 4 55 75 21 22 Regions Visited 39 Branch Regions 25 Pre-discovered Areas 28 | . 2 1 1 . 1 . . . . . . 22 . . . . . . 1 . . . . . . . . . . . . . . . . . . . . Known Exits Taken 26 | . . . . . . . 1 . 1 1 1 1 1 . . 1 1 1 1 1 1 1 1 1 1 . . 1 1 1 1 1 1 1 1 . 1 1 . Unknown Exits Taken 9 | 1 1 1 1 1 1 1 . 1 . . . . . . . . . . . . . . . . . . . . . . . . . . . 1 . . . Scrap Searched 24 | . . 1 . 2 . 1 . . . 2 . . 2 . . . 1 8 3 . . . . . . . . . . 3 . 1 . . . . . . . Spaces Dug 149 | . . . . . . . . . 9 . . . 3 3 1 5 . . . . 7 8 . . . 9 . . 31 6 2 9 7 15 2 6 6 6 14 Terrain Destroyed 883 | . 9 38 15 42 . . 2 27 78 . . . 3 3 1 5 . . . . 43 8 6 13 149 37 . . 33 6 2 9 57 45 3 56 21 16 156 Melee 23 | . . . . . . . . . . . . . 3 3 1 5 . . . . 7 4 . . . . . . . . . . . . . . . . . Projectile 175 | . . . . . . . 2 4 2 . . . . . . . . . . . . . 6 13 5 37 . . 33 6 2 9 7 18 3 10 12 4 2 AOE 685 | . 9 38 15 42 . . . 23 76 . . . . . . . . . . . 36 4 . . 144 . . . . . . . 50 27 . 46 9 12 154 Terrain Rammed . | . . . . . . . . . . . . . . . . . . . . . . . . . . . . . . . . . . . . . . . . Walls Destroyed . | . . . . . . . . . . . . . . . . . . . . . . . . . . . . . . . . . . . . . . . . Machines Disabled . | . . . . . . . . . . . . . . . . . . . . . . . . . . . . . . . . . . . . . . . . Actions | -11 -10 -10 -9 -9 -9 -8 -8 -8 -7 -7 -7 -7 -6 -6 -6 -6 -6 -6 -6 -5 -5 -5 -5 -5 -5 -4 -4 -4 -4 -4 -4 -3 -3 -3 -2 -2 -2 -1 -1 --------- Run | Scr Mat Min Mat Min Exi Min Mat Sto Fac Low Low Dat Pro Fac Was Fac Low Low Zio Pro Fac Ext Cet Arc Hub Fac Was Fac Upp Upp War Pro Res Tes Res Qua Sec Acc Com Total 27992 | 52 824 477 1391 574 179 637 1528 700 1441 443 420 199 376 202 243 367 349 459 917 351 597 1700 325 127 52 1147 190 783 604 420 459 431 651 1260 166 1060 3143 1781 967 Wait 5985 | . 79 7 193 1 . 17 174 62 316 58 33 20 78 10 39 58 25 27 6 48 130 441 46 52 21 571 23 341 24 47 69 61 134 355 24 352 1180 748 115 Move 18627 | 44 668 454 1002 544 174 596 1165 539 994 383 362 135 290 161 153 279 323 427 890 297 401 1038 199 64 20 441 139 414 502 355 377 345 377 669 110 525 1406 733 632 Hop 16 | . . . . . . . . . . . . . . . . . . . . . . . . . . . . . . . . . . . . . . . 16 Pick Up 288 | 2 12 2 18 . 2 1 19 5 17 . 1 8 . 3 3 4 . 1 3 . 5 11 12 . . 9 3 2 1 . 1 . 18 23 4 20 40 27 11 Fast Attach 112 | 6 2 . 5 . . . 5 3 7 . . 1 . 1 3 . . . 5 . . 6 4 . . 5 . 5 . 2 . . 3 12 . 10 19 . 8 Attach 180 | . . . 1 . . . 9 . 5 . 1 4 . 2 1 . . . 2 1 2 3 . . . 2 . 2 . . . . 16 11 3 21 57 14 23 Detach 60 | . . . . . . . 1 . . . . . . . . . . . 1 . . . . . . . . . . . . . 2 2 1 7 34 8 4 Swap 339 | . 8 2 24 7 1 . 14 10 11 . 2 8 2 9 4 3 1 1 2 1 15 16 8 2 5 31 1 . 11 2 3 4 9 30 3 22 59 7 1 Drop 320 | . 7 2 35 2 2 . 25 12 13 . . 4 . 3 13 4 . 2 8 . 3 13 16 . . 14 6 2 1 2 1 . 7 24 2 27 36 26 8 Fire 1824 | . 41 9 107 15 . 16 108 59 69 2 20 16 3 9 23 5 . . . 4 21 64 40 8 4 69 18 15 65 12 8 21 85 133 19 71 312 212 141 Melee 59 | . . . . . . . . . . . . 3 3 3 4 14 . . . . 8 19 . . . . . . . . . . . . . 5 . . . Ram 1 | . . . . . . . . . . . . . . . . . . . . . . . . . . . . . . . . . . 1 . . . . . Kick . | . . . . . . . . . . . . . . . . . . . . . . . . . . . . . . . . . . . . . . . . Crush 59 | . 7 1 6 5 . 7 8 10 3 . . . . 1 . . . . . . 1 . . 1 2 5 . 2 . . . . . . . . . . . Escape Stasis 20 | . . . . . . . . . 6 . . . . . . . . . . . . . . . . . . . . . . . . . . . . 6 8 Rewire 102 | . . . . . . . . . . . 1 . . . . . . 1 . . 11 89 . . . . . . . . . . . . . . . . . Trap . | . . . . . . . . . . . . . . . . . . . . . . . . . . . . . . . . . . . . . . . . Miscellaneous . | . . . . . . . . . . . . . . . . . . . . . . . . . . . . . . . . . . . . . . . . Route ------- -11/Scrapyard -10/Materials (discovered 4 exits: *Mat x3 / [*Min]) -10/Mines (discovered 2 exits: *Mat x2) -9/Materials (discovered 4 exits: *Mat x2 / [*Min x2]) -9/Mines (discovered 3 exits: *Mat x2 / *Exi) -9/Exiles (discovered 2 exits: [*Min x2]) -8/Mines (discovered 2 exits: *Mat x2) -8/Materials (discovered 4 exits: *Fac x3 / *Sto) -8/Storage -7/Factory (discovered 4 exits: *Fac x2 / *Low x2) -7/Lower Caves -7/Lower Caves -7/Data Miner -6/Proximity Caves -6/Factory (discovered 5 exits: *Fac x3 / Low x2) -6/Waste -6/Factory (discovered 2 exits: *Low x2) -6/Lower Caves -6/Lower Caves -6/Zion -5/Proximity Caves -5/Factory (discovered 2 exits: Upp / *Ext) -5/Extension (discovered 2 exits: *Fac / *Cet) -5/Cetus (discovered 2 exits: *Fac / *Arc) -5/Archives (discovered 3 exits: *Fac / *Hub x2) -5/Hub_04(d) -4/Factory (discovered 6 exits: Res x4 / *Upp x2) -4/Waste -4/Factory (discovered 2 exits: *Upp x2) -4/Upper Caves -4/Upper Caves -4/Warlord -3/Proximity Caves -3/Research (discovered 3 exits: Arm / *Tes x2) -3/Testing -2/Research (discovered 2 exits: *Qua x2) -2/Quarantine -2/Section 7 -1/Access -1/Command (discovered 1 exit: [*Sur]) History --------- Turn | Location | Event 11 | -11/Scrapyard | Discovered new exit (range 16) 69 | -11/Scrapyard | Entered Materials 190 | -10/Materials | Discovered new exit (range 18) 317 | -10/Materials | Build established: Mutant 569 | -10/Materials | Discovered new exit (range 11) 681 | -10/Materials | Discovered new exit (range 12) 942 | -10/Materials | Repaired Shotgun 1118 | -10/Materials | Discovered new exit (range 16) 1375 | -10/Materials | Entered Mines 1408 | -10/Mines | Found a hidden stash of uninstalled traps 1518 | -10/Mines | Received a Rocket Launcher from a helpful Derelict 1631 | -10/Mines | Discovered new exit (range 11) 1785 | -10/Mines | Discovered new exit (range 7) 2137 | -10/Mines | Entered Materials 2137 | -9/Materials | Evolved 2 slots: Utility x1, Weapon x1 2701 | -9/Materials | Discovered new exit (range 16) 2716 | -9/Materials | Build established: Tank 3014 | -9/Materials | Discovered new exit (range 6) 3737 | -9/Materials | First assault squad dispatched 3974 | -9/Materials | Repaired Hrd. Light Armor Plating 4099 | -9/Materials | Discovered new exit (range 12) 4778 | -9/Materials | Discovered new exit (range 12) 5215 | -9/Materials | Entered Mines 5258 | -9/Mines | Met a Derelict bent on vengeance 5408 | -9/Mines | Discovered new exit (range 11) 6536 | -9/Mines | Discovered new exit (range 6) 6687 | -9/Mines | Deemed a non-threat by the Exiles lab entrance 6687 | -9/Mines | Discovered new exit (range 5) 6697 | -9/Mines | Entered Exiles 6731 | -9/Exiles | Discovered new exit (range 15) 6762 | -9/Exiles | Met 8R-AWN 6804 | -9/Exiles | Met EX-HEX 6954 | -9/Exiles | Met EX-DEC 6998 | -9/Exiles | Learned location of Zion (-6) 7125 | -9/Exiles | Discovered new exit (range 14) 7153 | -9/Exiles | Entered Mines 7489 | -8/Mines | Discovered new exit (range 10) 7892 | -8/Mines | Discovered new exit (range 7) 8791 | -8/Mines | Entered Materials 8791 | -8/Materials | Evolved 2 slots: Propulsion x1, Utility x1 9398 | -8/Materials | Discovered new exit (range 5) 9685 | -8/Materials | Identified exit to Storage 9733 | -8/Materials | Build established: Scavenger-Tank 10399 | -8/Materials | Discovered new exit (range 15) 11004 | -8/Materials | Discovered new exit (range 16) 12168 | -8/Materials | Repaired Lgt. Treads 12388 | -8/Materials | Entered Storage 12989 | -8/Storage | Build established: Tank 13916 | -8/Storage | Discovered new exit (range 16) 13961 | -8/Storage | Met a pair of Derelict thieves 14036 | -8/Storage | Entered Factory 14036 | -7/Factory | Accompanied by 2 allies 14036 | -7/Factory | Evolved 2 slots: Utility x2 14147 | -7/Factory | Fabricated Huge Storage Unit (x1) 14243 | -7/Factory | Discovered new exit (range 15) 14296 | -7/Factory | Identified exit to Factory 14341 | -7/Factory | Build established: Skirmisher 14407 | -7/Factory | Repaired Gauss Rifle 14452 | -7/Factory | Repaired Gauss Rifle 14578 | -7/Factory | Identified exit to Lower Caves 15744 | -7/Factory | Discovered exit to Factory (range 15) 16631 | -7/Factory | Fabricated Flak Gun (x2) 16673 | -7/Factory | Fabricated Flak Gun (x2) 16733 | -7/Factory | Fabricated Flak Gun (x2) 16941 | -7/Factory | Local fabrication network quarantined 16979 | -7/Factory | Build established: Machinist-Skirmisher 16982 | -7/Factory | Fabricated Flak Gun (x2) 17224 | -7/Factory | Entered Lower Caves 17617 | -7/Lower Caves | Learned 8 Factory zone layouts 17682 | -7/Lower Caves | Attracted the attention of an 0b10 checkpoint 18221 | -7/Lower Caves | Discovered new exit (range 6) 18234 | -7/Lower Caves | Identified exit to Lower Caves 18289 | -7/Lower Caves | Entered another Lower Caves area 18734 | -7/Lower Caves | Learned 4 Factory zone layouts 18845 | -7/Lower Caves | Attracted the attention of an 0b10 outpost 18930 | -7/Lower Caves | Encountered a Warlord checkpoint 19323 | -7/Lower Caves | Discovered new exit (range 5) 19331 | -7/Lower Caves | Identified exit to Data Miner 19333 | -7/Lower Caves | Entered Data Miner 19333 | -7/Data Miner | Discovered new exit (range 6) 19383 | -7/Data Miner | Met Data Miner 19433 | -7/Data Miner | Learned location of Section 7 (-2) 19433 | -7/Data Miner | Acquired the access code to Warlord's prototype stash 19469 | -7/Data Miner | Received God Mode back door access code from Data Miner 19525 | -7/Data Miner | Destroyed Data Miner 19528 | -7/Data Miner | Found Prototype Hackware 19531 | -7/Data Miner | Found Prototype Hackware 19538 | -7/Data Miner | Found Prototype Hackware 19539 | -7/Data Miner | Interfaced with the Data Conduit 19627 | -7/Data Miner | Lost 3 parts (1n1u1w) 19792 | -7/Data Miner | Identified exit to Proximity Caves 19795 | -7/Data Miner | Entered Proximity Caves 19958 | -6/Proximity Caves | Build established: Skirmisher 20044 | -6/Proximity Caves | Spotted B-75 Beast 20398 | -6/Proximity Caves | Discovered exit to Factory (range 10) 20508 | -6/Proximity Caves | Build established: Machinist-Skirmisher 20665 | -6/Proximity Caves | Entered Factory 20665 | -6/Factory | Evolved 2 slots: Propulsion x1, Utility x1 20666 | -6/Factory | Identified exit to Factory 20666 | -6/Factory | Identified exit to Lower Caves 20666 | -6/Factory | Identified System Mapper 20667 | -6/Factory | Loaded intel: 248 machine locations 21160 | -6/Factory | Sucked down chute 21160 | -6/Factory | Entered Waste 21175 | -6/Waste | EMP discharged 21175 | -6/Waste | System corruption reached 10% 21216 | -6/Waste | Destroyed C-40 Crusher 21241 | -6/Waste | Destroyed C-40 Crusher 21247 | -6/Waste | Destroyed C-40 Crusher 21275 | -6/Waste | EMP discharged 21297 | -6/Waste | Destroyed C-40 Crusher 21317 | -6/Waste | Found Damper Plating 21327 | -6/Waste | Destroyed C-40 Crusher 21344 | -6/Waste | Destroyed C-40 Crusher 21375 | -6/Waste | EMP discharged 21469 | -6/Waste | Build established: Hacker-Skirmisher 21475 | -6/Waste | EMP discharged 21475 | -6/Waste | System corruption reached 30% 21489 | -6/Waste | Met Warlord forces unprepared to attack 21522 | -6/Waste | Discovered new exit (range 15) 21551 | -6/Waste | Identified exit to Factory 21566 | -6/Waste | Entered Factory 21566 | -6/Factory | Accompanied by 18 allies 21567 | -6/Factory | Loaded intel: 283 machine locations 21871 | -6/Factory | Fabricated Exp. Targeting Computer (x1) 22133 | -6/Factory | Entered Lower Caves 22133 | -6/Lower Caves | Accompanied by 10 allies 22319 | -6/Lower Caves | Learned Factory emergency access door positions 22448 | -6/Lower Caves | Encountered a Warlord checkpoint 22649 | -6/Lower Caves | Discovered new exit (range 11) 22665 | -6/Lower Caves | Identified exit to Lower Caves 22677 | -6/Lower Caves | Entered another Lower Caves area 22677 | -6/Lower Caves | Accompanied by 10 allies 22852 | -6/Lower Caves | Encountered a Warlord checkpoint 23364 | -6/Lower Caves | Discovered new exit (range 8) 23382 | -6/Lower Caves | Identified exit to Zion 23392 | -6/Lower Caves | Entered Zion 23392 | -6/Zion | Accompanied by 4 allies 23463 | -6/Zion | System corruption cleaned by Quarantine Array 23688 | -6/Zion | Discovered new exit (range 15) 23956 | -6/Zion | Gained Derelict followers 24066 | -6/Zion | Learned Factory stockpile data 24102 | -6/Zion | Learned 4 Factory zone layouts 24178 | -6/Zion | Learned Factory security intel 24202 | -6/Zion | Given the Hacking Drone Bay 24727 | -6/Zion | Visited the Megawrench Repair Shop 24727 | -6/Zion | Megawrench repaired 10 parts 24836 | -6/Zion | Identified exit to Proximity Caves 24842 | -6/Zion | Entered Proximity Caves 24842 | -5/Proximity Caves | Accompanied by 8 allies 24885 | -5/Proximity Caves | Learned Factory interactive machine intel 25011 | -5/Proximity Caves | Build established: Scavenger-Skirmisher 25369 | -5/Proximity Caves | Discovered exit to Factory (range 4) 25380 | -5/Proximity Caves | Entered Factory 25380 | -5/Factory | Accompanied by 1 ally 25380 | -5/Factory | Evolved 2 slots: Utility x1, Weapon x1 25380 | -5/Factory | Identified Ghost Barrier 25381 | -5/Factory | Identified exit to Upper Caves 25381 | -5/Factory | Identified Quantum Router 25386 | -5/Factory | Loaded intel: 277 machine locations 25387 | -5/Factory | Loaded intel: 47 interactive machine locations 25760 | -5/Factory | Fabricated Lrn. Tractor Beam? 25785 | -5/Factory | Local fabrication network quarantined 26230 | -5/Factory | Discovered new exit (range 15) 26253 | -5/Factory | Identified exit to Extension 26280 | -5/Factory | First assault squad dispatched 26280 | -5/Factory | Entered Extension 26281 | -5/Extension | Loaded intel: 31 machine locations 26427 | -5/Extension | Rescued a captive Derelict 26621 | -5/Extension | Rescued a captive Derelict 26624 | -5/Extension | Rescued a captive Derelict 26780 | -5/Extension | Disrupted transfer network 27025 | -5/Extension | Build established: Hacker-Skirmisher 27278 | -5/Extension | Rescued a captive Derelict 27591 | -5/Extension | Spotted B-75 Beast 27601 | -5/Extension | Destroyed B-75 Beast 27626 | -5/Extension | Spotted B-75 Beast 27774 | -5/Extension | Build established: Hacker-Gunner 28032 | -5/Extension | Destroyed B-75 Beast 28072 | -5/Extension | Rescued A7 28141 | -5/Extension | Found Prototype Protection 28141 | -5/Extension | Identified Med. Regenerative Plating 28152 | -5/Extension | Rescued a captive Derelict 28594 | -5/Extension | Rescued a captive Derelict 28596 | -5/Extension | Rescued a captive Derelict 28657 | -5/Extension | Discovered new exit (range 10) 28658 | -5/Extension | Discovered new exit (range 6) 28677 | -5/Extension | Extracted ID and sensor layout for unrecognized location from A7's data core 28709 | -5/Extension | Identified exit to Cetus 28717 | -5/Extension | Entered Cetus 28717 | -5/Cetus | Accompanied by 8 allies 28718 | -5/Cetus | Loaded intel: 24 machine locations 28754 | -5/Cetus | Spotted Cetus Guard 28756 | -5/Cetus | Spotted Cetus Guard 28757 | -5/Cetus | Spotted Cetus Guard 28766 | -5/Cetus | Spotted Cetus Guard 28771 | -5/Cetus | Destroyed Cetus Guard 28774 | -5/Cetus | Destroyed Cetus Guard 28780 | -5/Cetus | Destroyed Cetus Guard 28787 | -5/Cetus | Destroyed Cetus Guard 28814 | -5/Cetus | Destroyed 7 combat bots 28981 | -5/Cetus | Discovered new exit (range 16) 29028 | -5/Cetus | Spotted Cetus Guard 29028 | -5/Cetus | Spotted Cetus Guard 29031 | -5/Cetus | Destroyed Cetus Guard 29031 | -5/Cetus | Spotted Cetus Guard 29034 | -5/Cetus | Spotted Cetus Guard 29037 | -5/Cetus | Destroyed Cetus Guard 29039 | -5/Cetus | Destroyed Cetus Guard 29046 | -5/Cetus | Destroyed Cetus Guard 29067 | -5/Cetus | Destroyed 7 combat bots 29070 | -5/Cetus | Discovered new exit (range 15) 29078 | -5/Cetus | Met Revision 17 29080 | -5/Cetus | Destroyed Revision 17 29189 | -5/Cetus | Identified exit to Archives 29194 | -5/Cetus | Entered Archives 29195 | -5/Archives | Loaded intel: 8 machine locations 29318 | -5/Archives | Discovered new exit (range 15) 29334 | -5/Archives | Discovered new exit (range 16) 29355 | -5/Archives | Discovered new exit (range 13) 29373 | -5/Archives | Identified exit to Hub_04(d) 29376 | -5/Archives | Entered Hub_04(d) 29377 | -5/Hub_04(d) | Loaded intel: 77 machine locations 29415 | -5/Hub_04(d) | Discovered new exit (range 10) 29430 | -5/Hub_04(d) | Identified exit to Factory 29441 | -5/Hub_04(d) | Network Hub disabled 29450 | -5/Hub_04(d) | Entered Factory 29450 | -4/Factory | Evolved 2 slots: Utility x2 29451 | -4/Factory | Loaded intel: 308 machine locations 29569 | -4/Factory | Identified exit to Upper Caves 29569 | -4/Factory | Identified exit to Research 29746 | -4/Factory | First assault squad dispatched 30052 | -4/Factory | Fabricated Flak Gun (x2) 30101 | -4/Factory | Fabricated Flak Gun (x2) 30149 | -4/Factory | Fabricated Flak Gun (x2) 30200 | -4/Factory | Fabricated Flak Gun (x2) 30247 | -4/Factory | Fabricated Flak Gun (x2) 30309 | -4/Factory | Fabricated Lrn. Sensor Array (x1) 30452 | -4/Factory | Build established: Hacker-Skirmisher 30552 | -4/Factory | Fabricated Centrium Heavy Treads? 30753 | -4/Factory | Local fabrication network quarantined 30847 | -4/Factory | Intercept squad dispatched 30873 | -4/Factory | Spotted Tracker 30882 | -4/Factory | Destroyed Tracker 30888 | -4/Factory | Spotted Combat Programmer 30894 | -4/Factory | Destroyed Combat Programmer 30958 | -4/Factory | Sucked down chute 30958 | -4/Factory | Entered Waste 30973 | -4/Waste | EMP discharged 30973 | -4/Waste | System corruption reached 10% 30992 | -4/Waste | Destroyed C-40 Crusher 31016 | -4/Waste | Found Damper Plating 31037 | -4/Waste | Destroyed C-40 Crusher 31056 | -4/Waste | Spotted C-40 Crusher 31073 | -4/Waste | EMP discharged 31076 | -4/Waste | Destroyed C-40 Crusher 31104 | -4/Waste | Destroyed C-40 Crusher 31131 | -4/Waste | Destroyed C-40 Crusher 31148 | -4/Waste | Found Damper Plating 31167 | -4/Waste | Destroyed C-40 Crusher 31173 | -4/Waste | EMP discharged 31189 | -4/Waste | Found Damper Plating 31240 | -4/Waste | Discovered new exit (range 12) 31256 | -4/Waste | Identified exit to Factory 31262 | -4/Waste | Entered Factory 31263 | -4/Factory | Loaded intel: 251 machine locations 31513 | -4/Factory | Repaired Flak Gun 31536 | -4/Factory | Repaired Flak Gun 31559 | -4/Factory | Repaired Flak Gun 31615 | -4/Factory | Repaired Centrium Heavy Treads 31671 | -4/Factory | Repaired Lrn. Sensor Array 32245 | -4/Factory | Intercept squad dispatched 32264 | -4/Factory | Spotted Tracker 32265 | -4/Factory | Spotted Tracker 32271 | -4/Factory | Destroyed Tracker 32279 | -4/Factory | Destroyed Tracker 32324 | -4/Factory | Entered Upper Caves 32449 | -4/Upper Caves | Attacked by a delusional Derelict stockpiling parts 32843 | -4/Upper Caves | Build established: Hacker-Mutant 32980 | -4/Upper Caves | Attracted the attention of an 0b10 checkpoint 33042 | -4/Upper Caves | Discovered new exit (range 9) 33056 | -4/Upper Caves | Identified exit to Upper Caves 33271 | -4/Upper Caves | Build established: Hacker-Skirmisher 33288 | -4/Upper Caves | Entered another Upper Caves area 33668 | -4/Upper Caves | Acquired the password to a Derelict Tinkerer's latest research 33731 | -4/Upper Caves | Discovered new exit (range 14) 33751 | -4/Upper Caves | Identified exit to Warlord 33792 | -4/Upper Caves | Encountered a Warlord checkpoint 33937 | -4/Upper Caves | Entered Warlord 33992 | -4/Warlord | System corruption cleaned by Quarantine Array 34212 | -4/Warlord | Met Warlord 34227 | -4/Warlord | Opened Warlord's prototype stash 34237 | -4/Warlord | Warlord's base attacked by MAIN.C 34242 | -4/Warlord | Found Ghost Barrier 34497 | -4/Warlord | Opened side exit 34587 | -4/Warlord | Warlord forces counterattacked 34616 | -4/Warlord | Discovered new exit (range 11) 34627 | -4/Warlord | Identified exit to Proximity Caves 34628 | -4/Warlord | Entered Proximity Caves 35263 | -3/Proximity Caves | Discovered exit to Research (range 3) 35289 | -3/Proximity Caves | Entered Research 35289 | -3/Research | Evolved 2 slots: Utility x2 35290 | -3/Research | Loaded intel: 111 machine locations 35469 | -3/Research | Identified exit to Armory 35469 | -3/Research | Identified exit to Testing 35472 | -3/Research | Fabricated Exp. Weapon Shielding? 35588 | -3/Research | Local fabrication network quarantined 35601 | -3/Research | Fabricated Mni. Smartbomb Launcher (x1) 36039 | -3/Research | First assault squad dispatched 36043 | -3/Research | Crushed by falling debris 36190 | -3/Research | Repaired Flak Gun 36201 | -3/Research | Garrison activated, responded to threat 36207 | -3/Research | Repaired Flak Gun 36314 | -3/Research | Intercept squad dispatched 36326 | -3/Research | Spotted Tracker 36326 | -3/Research | Spotted Tracker 36334 | -3/Research | Spotted Combat Programmer 36344 | -3/Research | Destroyed Tracker 36357 | -3/Research | Destroyed Tracker 36359 | -3/Research | Spotted Combat Programmer 36376 | -3/Research | Destroyed Combat Programmer 36384 | -3/Research | Destroyed Combat Programmer 36405 | -3/Research | Destroyed 7 combat bots 36418 | -3/Research | Found Exp. Targeting Computer 36428 | -3/Research | Found Exp. Target Analyzer 36480 | -3/Research | Found Exp. Hacking Suite 36528 | -3/Research | Build established: Machinist-Gunner 36537 | -3/Research | Spotted Striker 36562 | -3/Research | Destroyed Striker 36571 | -3/Research | Garrison activated, responded to threat 36603 | -3/Research | Destroyed 7 combat bots 36611 | -3/Research | Lost 5 parts (1p3u1w) 36658 | -3/Research | Entered Testing 36659 | -3/Testing | Loaded intel: 64 machine locations 36827 | -3/Testing | Fabricated Centrium Heavy Treads (x1) 36900 | -3/Testing | Build established: Hacker-Gunner 36920 | -3/Testing | Found Prototype Processor 37240 | -3/Testing | Found System Mapper 37274 | -3/Testing | Identified exit to Research 37336 | -3/Testing | Repaired Exp. Weapon Shielding? 37370 | -3/Testing | Repaired Flak Gun 37385 | -3/Testing | Repaired Flak Gun 37398 | -3/Testing | Intercept squad dispatched 37413 | -3/Testing | Spotted Tracker 37415 | -3/Testing | System corruption reached 10% 37416 | -3/Testing | Destroyed Tracker 37417 | -3/Testing | Spotted Tracker 37422 | -3/Testing | Destroyed Tracker 37443 | -3/Testing | Spotted Combat Programmer 37444 | -3/Testing | Spotted Combat Programmer 37452 | -3/Testing | Destroyed Combat Programmer 37464 | -3/Testing | Destroyed Combat Programmer 37649 | -3/Testing | Found Prototype Ballistic Cannon 37649 | -3/Testing | Identified Omega Cannon 37693 | -3/Testing | First assault squad dispatched 37862 | -3/Testing | Destroyed 14 combat bots 37912 | -3/Testing | Found Prototype Ballistic Cannon 37914 | -3/Testing | Identified Perforator 38062 | -3/Testing | Found Gamma Bomb Array 38158 | -3/Testing | Build established: Hacker-Mutant 38252 | -3/Testing | Destroyed 8 combat bots 38491 | -3/Testing | Found Prototype Protection 38548 | -3/Testing | Entered Research 38548 | -2/Research | Warlord forces began assault on 0b10 38548 | -2/Research | Evolved 2 slots: Utility x2 38549 | -2/Research | Loaded intel: 93 machine locations 38549 | -2/Research | Identified SHELL Armor 38595 | -2/Research | Found Exp. Force Field 38615 | -2/Research | Identified exit to Quarantine 38658 | -2/Research | Research machine network offline 38678 | -2/Research | Found Exp. Force Field 38688 | -2/Research | Destroyed 10 combat bots 38928 | -2/Research | Entered Quarantine 38929 | -2/Quarantine | Loaded intel: 69 machine locations 38978 | -2/Quarantine | Found Alien Impact Weapon 39075 | -2/Quarantine | Cryocooling Duct disabled 39090 | -2/Quarantine | Ambient heat levels rising (+20) 39090 | -2/Quarantine | Non-combat units ordered to evacuate 39530 | -2/Quarantine | Found Alien Artifact 39616 | -2/Quarantine | Identified Core Reset Matrix 39941 | -2/Quarantine | Repaired Lrn. Sensor Array 39989 | -2/Quarantine | Intercept squad dispatched 40001 | -2/Quarantine | Spotted Tracker 40001 | -2/Quarantine | Spotted Tracker 40020 | -2/Quarantine | Destroyed Tracker 40021 | -2/Quarantine | Destroyed Tracker 40026 | -2/Quarantine | Spotted Combat Programmer 40026 | -2/Quarantine | Spotted Combat Programmer 40031 | -2/Quarantine | Destroyed Combat Programmer 40036 | -2/Quarantine | Destroyed Combat Programmer 40049 | -2/Quarantine | Found Prototype Device 40049 | -2/Quarantine | Identified Exp. Phase Shifter 40208 | -2/Quarantine | Repaired Centrium Heavy Treads 40428 | -2/Quarantine | First assault squad dispatched 40559 | -2/Quarantine | Identified Core Stripper 40572 | -2/Quarantine | Spotted Fortress 40642 | -2/Quarantine | Destroyed Fortress 40660 | -2/Quarantine | Found EM Dispersion Field 40676 | -2/Quarantine | Found Prototype Reactor 40685 | -2/Quarantine | Found Prototype Reactor 40837 | -2/Quarantine | Discovered new exit (range 5) 40845 | -2/Quarantine | Entered Section 7 40845 | -2/Section 7 | Spotted S7 Guard 40846 | -2/Section 7 | Loaded intel: 160 machine locations 40864 | -2/Section 7 | Garrison activated, responded to threat 40929 | -2/Section 7 | Destroyed 11 combat bots 40992 | -2/Section 7 | Destroyed S7 Guard 41034 | -2/Section 7 | Found Alien Artifact 41034 | -2/Section 7 | Identified Integrated Singularity Reactor 41034 | -2/Section 7 | Installed Integrated Singularity Reactor, increased core energy generation (+20) 41137 | -2/Section 7 | Found Alien Artifact 41139 | -2/Section 7 | Identified Integrated Dissipator 41139 | -2/Section 7 | Installed Integrated Dissipator, increased core heat dissipation (+20) 41212 | -2/Section 7 | Found Alien Artifact 41213 | -2/Section 7 | Identified Integrated Reactor 41213 | -2/Section 7 | Installed Integrated Reactor, increased core energy generation (+10) 41286 | -2/Section 7 | Found Alien Artifact 41288 | -2/Section 7 | Identified Integrated Mediator 41288 | -2/Section 7 | Installed Integrated Mediator, increased core attachment efficiency. 41407 | -2/Section 7 | Repaired Lrn. Tractor Beam 41628 | -2/Section 7 | Spotted S7 Guard 41633 | -2/Section 7 | Destroyed S7 Guard 41679 | -2/Section 7 | Found Alien Artifact 41680 | -2/Section 7 | Identified Integrated Heat Negator 41680 | -2/Section 7 | Installed Integrated Heat Negator, increased core heat dissipation (+40) 41781 | -2/Section 7 | Intercept squad dispatched 41790 | -2/Section 7 | Spotted Tracker 41790 | -2/Section 7 | Spotted Tracker 41792 | -2/Section 7 | Destroyed Tracker 41796 | -2/Section 7 | Destroyed Tracker 41810 | -2/Section 7 | Spotted Combat Programmer 41810 | -2/Section 7 | Spotted Combat Programmer 41814 | -2/Section 7 | System corruption reached 10% 41828 | -2/Section 7 | Destroyed Combat Programmer 41831 | -2/Section 7 | Destroyed Combat Programmer 41845 | -2/Section 7 | First assault squad dispatched 42002 | -2/Section 7 | Spotted S7 Guard 42007 | -2/Section 7 | Found Alien Artifact 42009 | -2/Section 7 | Identified Core Membrane 42009 | -2/Section 7 | Installed Core Membrane, gained immunity to corruption 42530 | -2/Section 7 | Destroyed 9 combat bots 42650 | -2/Section 7 | Found Enh. Gamma Bomb Array 42701 | -2/Section 7 | Spotted Executioner 42701 | -2/Section 7 | Spotted Executioner 42710 | -2/Section 7 | Destroyed Executioner 42713 | -2/Section 7 | Destroyed Executioner 42784 | -2/Section 7 | Found Alien Artifact 42789 | -2/Section 7 | Intercept squad dispatched 42789 | -2/Section 7 | Found Alien Artifact 42791 | -2/Section 7 | Found Alien Artifact 42803 | -2/Section 7 | Spotted Tracker 42805 | -2/Section 7 | Destroyed Tracker 42805 | -2/Section 7 | Spotted Tracker 42807 | -2/Section 7 | Destroyed Tracker 42807 | -2/Section 7 | Spotted Tracker 42808 | -2/Section 7 | Destroyed Tracker 42842 | -2/Section 7 | Spotted Combat Programmer 42846 | -2/Section 7 | Destroyed Combat Programmer 42846 | -2/Section 7 | Spotted Combat Programmer 42851 | -2/Section 7 | Destroyed Combat Programmer 42851 | -2/Section 7 | Spotted Combat Programmer 42856 | -2/Section 7 | Destroyed Combat Programmer 42968 | -2/Section 7 | Spotted B-99 Colossus 43071 | -2/Section 7 | Found Alien Artifact 43071 | -2/Section 7 | Identified LRC Storage 43071 | -2/Section 7 | Installed LRC Storage, increased inventory capacity (+2) 43074 | -2/Section 7 | Found LRC Storage 43074 | -2/Section 7 | Installed LRC Storage, increased inventory capacity (+2) 43395 | -2/Section 7 | Found Integrated Reactor 43396 | -2/Section 7 | Installed Integrated Reactor, increased core energy generation (+10) 43454 | -2/Section 7 | High security lockdown imminent 43491 | -2/Section 7 | Destroyed 13 combat bots 43534 | -2/Section 7 | High security lockdown engaged 43646 | -2/Section 7 | Spotted Executioner 43647 | -2/Section 7 | Destroyed Executioner 43694 | -2/Section 7 | Destroyed 15 combat bots 43802 | -2/Section 7 | Destroyed 10 combat bots 43805 | -2/Section 7 | Destroyed Investigator 43881 | -2/Section 7 | Spotted Investigator 43885 | -2/Section 7 | Spotted Executioner 43885 | -2/Section 7 | Spotted Executioner 43889 | -2/Section 7 | Sterilization system engaged 43889 | -2/Section 7 | Non-combat units ordered to evacuate 43890 | -2/Section 7 | Destroyed Executioner 43890 | -2/Section 7 | Destroyed Executioner 43911 | -2/Section 7 | Destroyed Investigator 43916 | -2/Section 7 | Destroyed 11 combat bots 43920 | -2/Section 7 | Spotted Striker 43927 | -2/Section 7 | Destroyed Striker 43957 | -2/Section 7 | Destroyed Striker 43989 | -2/Section 7 | Combat units ordered to evacuate 44189 | -2/Section 7 | Ambient heat levels rising (+10) 44219 | -2/Section 7 | Found Prototype Processor 44246 | -2/Section 7 | Found Integrated Dissipator 44246 | -2/Section 7 | Installed Integrated Dissipator, increased core heat dissipation (+20) 44249 | -2/Section 7 | Found Integrated Dissipator 44249 | -2/Section 7 | Installed Integrated Dissipator, increased core heat dissipation (+20) 44252 | -2/Section 7 | Found Integrated Dissipator 44252 | -2/Section 7 | Installed Integrated Dissipator, increased core heat dissipation (+20) 44327 | -2/Section 7 | Destroyed B-99 Colossus 44339 | -2/Section 7 | Ambient heat levels rising (+10) 44353 | -2/Section 7 | Found Prototype Ballistic Gun 44489 | -2/Section 7 | Ambient heat levels rising (+10) 44627 | -2/Section 7 | Build established: Scavenger-Mutant 44639 | -2/Section 7 | Ambient heat levels rising (+10) 44789 | -2/Section 7 | Ambient heat levels rising (+10) 44939 | -2/Section 7 | Ambient heat levels rising (+10) 45052 | -2/Section 7 | Discovered new exit (range 15) 45076 | -2/Section 7 | Identified exit to Access 45078 | -2/Section 7 | Entered Access 45078 | -1/Access | Evolved 2 slots: Power x1, Utility x1 45079 | -1/Access | Loaded intel: 105 machine locations 45079 | -1/Access | Identified Vortex Chain Reactor 45252 | -1/Access | High security lockdown imminent 45330 | -1/Access | Fabricated Exp. Weapon Shielding (x1) 45332 | -1/Access | High security lockdown engaged 45462 | -1/Access | Destroyed 10 combat bots 45473 | -1/Access | Identified Transdimensional Reconstructor (x2) 45473 | -1/Access | Warped through subspace 45652 | -1/Access | Destroyed Executioner 45701 | -1/Access | Identified Hpw. Transdimensional Reconstructor 45701 | -1/Access | Warped through subspace 45885 | -1/Access | Garrison activated, responded to threat 45969 | -1/Access | Spotted Striker 45972 | -1/Access | Destroyed Striker 46024 | -1/Access | Destroyed 40 combat bots 46032 | -1/Access | Destroyed Striker 46068 | -1/Access | Destroyed Striker 46079 | -1/Access | Spotted Striker 46084 | -1/Access | Destroyed Striker 46113 | -1/Access | Destroyed 18 combat bots 46142 | -1/Access | Destroyed Executioner 46147 | -1/Access | Spotted Executioner 46174 | -1/Access | Destroyed Executioner 46234 | -1/Access | Garrison activated, responded to threat 46273 | -1/Access | Spotted Striker 46274 | -1/Access | Destroyed Striker 46274 | -1/Access | Spotted Striker 46279 | -1/Access | Destroyed Striker 46286 | -1/Access | Spotted Striker 46288 | -1/Access | Destroyed Striker 46322 | -1/Access | Destroyed 20 combat bots 46353 | -1/Access | Garrison activated, responded to threat 46386 | -1/Access | Spotted Striker 46386 | -1/Access | Spotted Striker 46386 | -1/Access | Spotted Striker 46387 | -1/Access | Destroyed Striker 46387 | -1/Access | Destroyed Striker 46397 | -1/Access | Destroyed Striker 46418 | -1/Access | Destroyed 11 combat bots 46440 | -1/Access | Destroyed Executioner 46443 | -1/Access | Destroyed Striker 46451 | -1/Access | Sterilization system engaged 46457 | -1/Access | Spotted Executioner 46458 | -1/Access | Destroyed Executioner 46460 | -1/Access | Spotted Investigator 46462 | -1/Access | Destroyed Investigator 46470 | -1/Access | Destroyed Striker 46479 | -1/Access | Spotted Striker 46480 | -1/Access | Destroyed Striker 46501 | -1/Access | Destroyed 12 combat bots 46558 | -1/Access | Destroyed Striker 46558 | -1/Access | Destroyed Executioner 46559 | -1/Access | Spotted Executioner 46560 | -1/Access | Destroyed Striker 46562 | -1/Access | Destroyed Striker 46562 | -1/Access | Destroyed Executioner 46579 | -1/Access | Spotted Executioner 46581 | -1/Access | Destroyed Executioner 46581 | -1/Access | Destroyed Executioner 46602 | -1/Access | Destroyed 17 combat bots 46751 | -1/Access | Ambient heat levels rising (+10) 46901 | -1/Access | Ambient heat levels rising (+10) 47051 | -1/Access | Ambient heat levels rising (+10) 47201 | -1/Access | Ambient heat levels rising (+10) 47298 | -1/Access | Energy Cycler disabled 47351 | -1/Access | Ambient heat levels rising (+10) 47435 | -1/Access | Build established: Scavenger-Gunner 47501 | -1/Access | Ambient heat levels rising (+10) 47651 | -1/Access | Ambient heat levels rising (+10) 47801 | -1/Access | Ambient heat levels rising (+10) 47905 | -1/Access | Discovered new exit (range 8) 47917 | -1/Access | Build established: Scavenger-Mutant 47951 | -1/Access | Ambient heat levels rising (+10) 48022 | -1/Access | Identified exit to Command 48076 | -1/Access | Identified Multirail 48100 | -1/Access | Spotted B-99 Colossus 48101 | -1/Access | Ambient heat levels rising (+10) 48125 | -1/Access | Destroyed B-99 Colossus 48151 | -1/Access | Destroyed B-99 Colossus 48239 | -1/Access | Entered Command 48240 | -1/Command | Loaded intel: 50 machine locations 48263 | -1/Command | Found Antimissile System 48379 | -1/Command | Disengaged cave seal 48379 | -1/Command | Derelicts emerged from the dark tunnel 48380 | -1/Command | Welcomed Warlord to Command 48406 | -1/Command | Phase Generator disabled 48538 | -1/Command | First assault squad dispatched 48599 | -1/Command | High security lockdown imminent 48605 | -1/Command | Attacked by Warlord forces 48608 | -1/Command | Spotted DX-BQE(g) 48642 | -1/Command | Warlord destroyed during the assault 48642 | -1/Command | Destroyed Warlord 48665 | -1/Command | Destroyed DX-BQE(g) 48672 | -1/Command | Lost 9 parts (1p2n5u1w) 48679 | -1/Command | High security lockdown engaged 48790 | -1/Command | Spotted Striker 48790 | -1/Command | Destroyed Striker 48882 | -1/Command | Destroyed 10 combat bots 48891 | -1/Command | Spotted Investigator 48892 | -1/Command | Scanned by Researcher 48893 | -1/Command | Destroyed Investigator 48899 | -1/Command | Destroyed Executioner 48932 | -1/Command | Destroyed 9 combat bots 49007 | -1/Command | Spotted Striker 49007 | -1/Command | Spotted Striker 49010 | -1/Command | Destroyed Striker 49012 | -1/Command | Destroyed Striker 49038 | -1/Command | Spotted Executioner 49041 | -1/Command | Spotted Executioner 49043 | -1/Command | Spotted Striker 49051 | -1/Command | Destroyed Executioner 49062 | -1/Command | Spotted Striker 49066 | -1/Command | Spotted Executioner 49071 | -1/Command | Destroyed Executioner 49082 | -1/Command | Destroyed Executioner 49121 | -1/Command | Destroyed Striker 49121 | -1/Command | Destroyed Striker 49122 | -1/Command | Core integrity fell below 50% 49147 | -1/Command | Destroyed 14 combat bots 49159 | -1/Command | Lost 23 parts (2p3n12u6w) 49234 | -1/Command | Spotted Striker 49301 | -1/Command | Spotted Executioner 49347 | -1/Command | Spotted Striker 49348 | -1/Command | Spotted Alpha 7 49348 | -1/Command | Spotted Executioner 49348 | -1/Command | Spotted Executioner 49355 | -1/Command | Spotted B-99 Colossus 49356 | -1/Command | Spotted Executioner 49356 | -1/Command | Spotted Executioner 49356 | -1/Command | Spotted Alpha 7 49356 | -1/Command | Spotted Striker 49357 | -1/Command | Spotted B-99 Colossus 49358 | -1/Command | Discovered new exit (range 16) 49361 | -1/Command | Core integrity fell below 20% 49362 | -1/Command | Destroyed by B-99 Colossus with Linear Accelerator Last Messages --------------- 49359_ Slug penetrates Wall. 49359_ Penetrated by Slug. 49359_ Linear Accelerator destroyed. 49359_ Penetrated by Slug. 49359_ Impulse Thruster Array destroyed. 49359_ Penetrated by Slug. 49359_ Impulse Thruster Array destroyed. 49359_ Slug penetrates Earth. 49359_ Slug penetrates Wall. 49360_ Field strength at 66. 49360_ Penetrated by Slug. 49360_ Centrium Light Armor Plating destroyed. 49360_ Slug penetrates Executioner. 49360_ Stasis field depleted. 49360_ C-30 ARC bursts open, deploying its payload. 49360_ G-73 Enforcer unfolds itself. 49361_ Penetrated by Slug. 49361_ Slug penetrates Wall. 49362_ Penetrated by Slug. 49362_ Knocked back. Map ----- +----------------------------------------------------+ | ?????????????????????????????????????????????###?? | | ????????????????????????????????????????????? ?? | | ????????????????????????????????????????????? ?? | | ??????????????????##+#####?????????????? ???? ?? | | ??????????????????# ????????????? ????# ##? | | ??????????????????# ????????????? ????# #? | | ??????????????????# ?????????????#/#???# #? | | ??????????????????# ????"""T"""??# #???# #? | | ??????????????????# ????"""?"""??# #???# #? | | ??????????????????# ?????????????# ##### ## | | ??????????????????? #????????????# | | ????????????????????? #????????????# = | | ?????????????????????? #????????????# | | ??????????????????????? %%#?????????? ?+ | | ???????????????????#+#+##;##########+### | | | ??????????????????## % "% | | ??????????????????+ % % | | ?????????????????## gg | | ???????????????+ | | ???????????????#######;;# p############+######## | | ?????????????????????# ;E7 #????????? ?????? | | ??????????????????????#;;/;//##?????? ???? | | ??????????????????????#; E #????# """"" ?? | | ?????????????????????##;K^ ^ ##???# ""Y"" #? | | ?????????????????????#; % 7#???# #? | | ?????????????????????# % @ ^ ;#???# #? | | ?????????????????????# K#???# #? | | ?????????????????????# E##???# #? | | ?????????????????????# #???? """" #? | | ?????????????????????## E##??????"""" #? | | ??????????????????????# ^ #??????"""" ?? #? | | ?????????????""???????##BB ##??????""""????? #? | | ????????????"""???????? BB B?????????????????#? | | ?????????????R"???????? BB?????????????????? | | ????????????"""???????? ^^ ????????????????? | | ?????????????""??????? """ "" #???????????????? | | ?????????????????????? "?? " #???????????????? | | ?????????????????????? "?"" "? #???????????????? | | ?????????????????????? "?"< "? #???????????????? | | ????????????????????? "?? "?? ????????????????? | | ????????????????????? ?""""""???????????????????? | | ?????????????????????????????????????????????????? | | ?????????????????????????????????????????????????? | | ?????????????????????????????????????????????????? | | ?????????????????????????????????????????????????? | | ?????????????????????????????????????????????????? | | ?????????????????????????????????????????????????? | | ?????????????????????????????????????????????????? | | ?????????????????????????????????????????????????? | | ?????????????????????????????????????????????????? | +----------------------------------------------------+ Best States ------------- Heat Dissipation 262 Coolant Potential 50 Energy Generation 95 Energy Capacity 1140 Matter Stores 600 Matter Capacity 600 Sight Range 16 Robot Scan Range 18 Terrain Scan Density 10 Armor Coverage 3200 Resistance: EM 90 Utility Shielding 66 Weapon Shielding 90 Weapon Cycling 25 Evasion (%) 61 Targeting Accuracy 12 Target Analysis 10 Armor Integrity Analysis 45 Recoil Reduction 4 Salvage Targeting 3 Offensive Hacking 50 Defensive Hacking 45 Item Schematics ----------------- Huge Storage Unit | -10/Materials | Hacked Flak Gun | -7/Factory | Hacked Combat Drone Bay | -7/Data Miner | Free Lgt. Regenerative Plating | -7/Data Miner | Free Cmb. Gravmag System | -7/Data Miner | Free Exp. Cesium-ion Thruster | -7/Data Miner | Free Exp. Targeting Computer | -7/Data Miner | Free Tactical Coordination Suite | -7/Data Miner | Free Exp. ECM Suite | -7/Data Miner | Free Mni. Smartbomb Launcher | -7/Data Miner | Free Riot Gun | -6/Zion | Free Battle Rifle | -6/Zion | Free Battle Cannon | -6/Zion | Free Slug Cannon | -6/Zion | Free Ripper | -6/Zion | Free Lrn. Tractor Beam | -5/Factory | Hacked Imp. Weapon Cycler | -5/Factory | Hacked Hvy. Shock Bomb Launcher | -5/Extension | Hacked Lrn. Sensor Array | -4/Factory | Scanalyzed Exp. Weapon Shielding | -4/Factory | Hacked Adv. Hacking Suite | -4/Factory | Hacked Imp. Armor Integrity Analyzer | -4/Factory | Hacked Centrium Heavy Treads | -4/Factory | Scanalyzed Med. Regenerative Plating | -3/Testing | Hacked Biometal Heavy Treads | -2/Quarantine | Hacked Robot Schematics ------------------ S-27 Virus | -7/Data Miner | Free G-50 Soldier | -7/Data Miner | Free G-67 Veteran | -7/Data Miner | Free L-41 Fighter | -7/Data Miner | Free H-66 Slayer | -7/Data Miner | Free I-36 Angel | -7/Data Miner | Free Fabricated ------------ Huge Storage Unit | x1 | -7/Factory Flak Gun | x2 | -7/Factory Flak Gun | x2 | -7/Factory Flak Gun | x2 | -7/Factory Flak Gun | x2 | -7/Factory Exp. Targeting Computer | x1 | -6/Factory Lrn. Tractor Beam | x2 | -5/Factory Flak Gun | x2 | -4/Factory Flak Gun | x2 | -4/Factory Flak Gun | x2 | -4/Factory Flak Gun | x2 | -4/Factory Flak Gun | x2 | -4/Factory Lrn. Sensor Array | x1 | -4/Factory Centrium Heavy Treads | x1 | -4/Factory Exp. Weapon Shielding | x1 | -3/Research Mni. Smartbomb Launcher | x1 | -3/Research Centrium Heavy Treads | x1 | -3/Testing Exp. Weapon Shielding | x1 | -1/Access Alien Tech Used ----------------- Core Stripper Integrated Singularity Reactor Integrated Dissipator Integrated Reactor Integrated Mediator Integrated Heat Negator Core Membrane LRC Storage Transdimensional Reconstructor High-powered Transdimensional Reconstructor Achievements -------------- None Challenges ------------ None Game ------ Seed ProtonAerolevRifle Manual? 0 Play Time 05:42:25 Cumulative 1211.1 hours Start 2021.05.25 @ 12:45:00 End 2021.05.25 @ 20:41:16 Sessions 1 Manual Loads 0 Difficulty Rogue Special Mode None Game No. 411 Rogue 411 Adventurer 0 Explorer 0 Win Type - Total 88 Types 17/12/37/5/1/2/12/1/1 Lore% 97 Gallery% 96 Achievement% 85 Wizard Run 0 Options --------- ASCII 0 Keyboard 0 Movement Numpad Keybinds 0 Fullscreen 1 Font 18/SmallcapsGlow Map View 76x50 Tactical HUD 1 Map Filters NONE Filters NONE Steam 1 RUN: c48b97f0-3a10-4cb3-a164-6ea634cf4e0b